{"text_format":"1","workbook":"xlsx","n_sheets":14,"sheets":["ListesDéroulantes","Notice","Volet_general","Workpackages","Part1-Coord","Part2","Part3","Part4","Part5","Part6","Part7","Part8","Part9","Part10"],"not_rendered":{"charts":1,"images":3,"macros":1,"external_links":1,"defined_names":13,"comments":0,"pivot_tables":0},"unopened":[],"bounds":{"document_bytes":16777216,"sheet_cells":100000,"rows_first":2000,"rows_last":500,"rows_between":2000,"halvings":0,"cell_chars":16384,"cell_head_chars":4096},"cells_cut":0,"cells_raw":0,"read":"whole","date_system":"1900"}

{"sheet":"ListesDéroulantes","index":0,"n_rows":195,"n_cols":50,"rows_kept":195,"cut":false,"hidden":true,"merged":[[0,7,0,16],[0,18,0,21],[0,23,0,49]]}
[null,null,null,null,null,null,null,"Onglet Part1-Coord",null,null,null,null,null,null,null,null,null,null,"Spé onglet Part",null,null,null,null,"Onglet Volet_general"]
[null,null,null,null,null,null,null,"Fiche partenaire n°"," : Identification et budget",null,null,null,"Réservé à l'ANR",null,null,null,null,null,null,null,null,null,null,null,null,"Appel à projets IHU2",null,null,null,null,null,null,null,null,"Réservé à l'ANR",null,null,null,null,"25 erreurs"]
[null,"Recherche fondamentale",null,null,null,null,null,null,null,null,null,null,"N° de dossier",null,"ANR-17-IHU-00XX",null,null,null,null,null,null,null,null,null,null,null,null,null,null,null,null,null,null,null,"N° de dossier",null,"ANR-17-IHU2-00XX"]
[null,"Recherche industrielle",null,"EPA : Etablissement Public à caractère Administratif",null,null,null,null,null,null,null,null,"Acronyme",null,0,null,null,null,null,null,null,null,null,null,null,null,null,null,null,null,null,null,null,null,"Acronyme",null,0]
[null,"Développement expérimental",null,"EPIC : Etablissement Public à caractère Industriel et Commercial",null,null,null,null,null,null,null,null,null,null,null,null,null,null,null,null,null,null,null,null,null,null,null,null,null,null,null,null,null,null,"Nb de partenaires",null,2]
[null,null,null,"EPSCP : Etablissement Public à caractère Scientifique, Culturel et Professionnel",null,null,null,null,"Identification de l'établissement coordinateur (EC)"," ",null,null,null,null,null,null,null,null,"Identification du partenaire fondateur (PF)",null,null,null,null,null,null,"Document administratif et financier",null,null,null,null,null,null,null,null,null,null,null,"Edition 2017"]
[null,"Organisme de recherche",null,"EPST : Etablissement Public à caractère Scientifique et Technologique"]
[null,"Etablissement de santé",null,"Etablissement de santé",null,null,null,"Nom complet de l'EC",null,null,null,null,null,null,null,null,null,null,"Nom complet du PF"]
[null,"Fondation",null,"FCS : Fondation de Coopération Scientifique",null,null,null,null,null,null,null,null,null,null,null,null,null,null,null,null,null,null,null,"Volet général"]
[null,"Université",null,"Fondation",null,null,null,null,null,null,null,null,null,null,null,null,null,null,null,null,null,null,null,"Fiche d'identité du projet"]
[null,"Autre",null,"Association",null,null,null,"Sigle de l'EC",null,null,null,"Base de calcul de l'assiette de l'aide ","Coût marginal",null,null,null,null,null,"Sigle du PF"]
[null,null,null,"Collectivité territoriale",null,null,null,"Catégorie de l'EC",null,null,"Organisme de recherche",null,null,null,null,null,null,null,"Catégorie du PF",null,null,null,null,"Acronyme du projet",null,null,null,null,null,null,null,null,null,"Erreur :\nles données concernant le projet ne sont pas toutes renseignées.",null,null,null,null,null,null,1]
[null,"EPA : Etablissement Public à caractère Administratif",null,"Pôle de compétitivité",null,null,null,"Forme juridique de l'EC",null,null,null,null,"",null,null,null,null,null,"Forme juridique du PF",null,null,null,null,"Titre du projet",null,"en francais"]
[null,"EPIC : Etablissement Public à caractère Industriel et Commercial",null,"Micro PME (≤ 9 employés)",null,null,null,null,null,null,null,null,null,null,null,null,null,null,null,null,null,null,null,null,null,"en anglais"]
[null,"EPSCP : Etablissement Public à caractère Scientifique, Culturel et Professionnel",null,"Petite PME (10 ≤ emplyoés ≤ 50)"]
[null,"EPST : Etablissement Public à caractère Scientifique et Technologique",null,"Moyenne PME (51 ≤ employés ≤ 250)",null,null,null,"N° de SIRET",null,null,"Saisir un n°SIRET de 14digits","Catégorie de recherche R&D","",null,null,null,null,null,null,null,null,null,null,"Catégorie de recherche R&D",null,null,null,null,null,null,null,null,null,null,"Equipements / Equipment",0]
[null,"Etablissement de santé",null,"Entreprise autre que PME",null,null,null,null,null,null,"",null,null,null,null,null,null,null,null,null,null,null,null,null,null,null,null,null,null,null,null,null,null,null,"CDD & CDI / Fixed-term & permanent",0]
[null,"FCS : Fondation de Coopération Scientifique",null,"Autre public",null,null,null,"Assujetti à la TVA ",null,null,null,null,null,null,null,null,null,null,null,null,null,null,null,null,null,null,null,null,"Nombre de partenaires",null,null,null,null,null,"Missions / Travel",0]
[null,"Fondation",null,"Autre privé",null,null,null,null,null,null,null,null,null,null,null,null,null,null,null,null,null,null,null,"Durée du projet (en mois)",null,null,120,null,"Date de démarrage souhaitée",null,null,null,null,null,"PS / Outsourcing",0]
[null,"Association",null,"Structure à créer",null,null,null,null,"Personne habilitée à représenter juridiquement l'établissement coordinateur (pour signature de la convention attributive d'aide)",null,null,null,null,null,null,null,null,null,"Personne habilitée à représenter juridiquement le partenaire fondateur (signataire de la lettre d'engagement)",null,null,null,null,null,null,null,null,null,null,null,null,null,null,null,"DepExternes / consumables",0]
[null,"Autre public",null,null,null,null,null,null,null,null,null,null,null,null,null,null,null,null,null,null,null,null,null,null,null,null,null,null,"Acronyme de la structure coordinatrice",null,null,null,null,null,"Facturation interne / Internal billing",0]
[null,"Structure à créer",null,null,null,null,null,"Genre",null,null,null,null,null,null,null,null,null,null,null,null,null,null,null,null,null,null,null,null,null,null,null,null,null,null,"Frais de gestion / overhead & fees",0]
[null,null,null,null,null,null,null,"Prénom"]
[null,null,null,null,null,null,null,"Nom",null,null,null,null,null,null,null,null,null,null,null,null,null,null,null,"Récapitulatif des demandes financières de l'établissement coordinateur et des apports des partenaires"]
[null,null,null,null,null,null,null,"Qualité"]
[null,"Pas de SIRET",null,null,null,null,null,null,null,null,null,null,null,null,null,null,null,null,null,null,null,null,null,null,null,"Etablissement partenaire","Coût complet\n(en €)","Aide demandée\n(en €)",null,null,null,null,null,null,null,null,null,null,null,"Apports\n(en €)",null,null,null,null,null,null,null,null,null,"Cofinancements & participations\n(en €)"]
[null,null,null,null,null,null,null,null,"Demande financière ANR détaillée du projet (montant HT en €, incluant la TVA non récupérable le cas échéant)",null,null,null,null,null,null,null,null,null,"Apports détaillés du projet (montant HT en €, incluant la TVA non récupérable le cas échéant)"]
[null,"oui",null,null,null,null,null,null,"Equipements ou amortissement d'équipements de R&D (supérieur à 4 000 € HT)",null,null,null,null,null,null,null,null,null,null,null,null,null,null,null,null,null,null,"Total (€)","Total assiette de l'aide (en €)","Equipements ou amortissement d'équipements de R&D","Prestations de service externes","% Prestations de service externes/\nassiette de l'aide (en €)","Personnel (personne.mois)","CDD\n(Homme.Mois)","Personnel (€)","Missions","Autres dépenses externes (consommables, petits matériels …)","Autres dépenses justifiées par une procédure de facturation interne","Frais de gestion/structure","Total - Apports\n(en €)","Equipements ou amortissement d'équipements de R&D (supérieur à 4 000 € HT)","Prestations de service externes","Personnel financé CDD & CDI (personne.mois)","Apport Personnel\nCDD & CDI (€)","Apport\nAutre personnel  (personne.mois)","Apport\nAutre personnel  (€)","Missions","Autres dépenses externes (consommables, petits matériels …)","Autres dépenses justifiées par une procédure de facturation interne"]
[null,"non"]
[null,null,null,null,null,null,null,"Apport (en €)",null,null,null,"Descriptif","WP(s) ET tâche(s) concernés","Coût d'achat\n(en €)","Pourcentage\nd'utilisation\n(en%)","Coût total\n(en €)","Aide demandée\n(en €) ",null,null,null,null,null,null,"Coût total"]
[null,"coût complet",null,null,null,null,null,null,null,null,null,null,null,null,null,null,null,null,null,null,null,null,null,"Etablissement partenaire",null,null,null,null,null,null,null,null,null,null,null,null,null,null,null,null,null,null,null,null,null,null,null,null,null,"Montant obtenu"]
[null,"coût marginal",null,null,null,null,null,null,null,null,null,null,null,null,null,null,null,null,null,null,null,null,null,"EC-Part1","Aide",0,"- €","- €",0,"- €","- €","",0,"-",0,"- €","- €","- €","- €","- €","- €","- €",0,0,"-","- €","- €","- €","- €","- €"]
[null,null,null,null,null,null,null,null,null,null,null,null,null,null,null,null,null,null,null,null,null,null,null,"Part2","Apports",0,"- €","- €",0,"- €","- €","",0,"-",0,"- €","- €","- €","- €","- €","- €","- €",0,0,"-","- €","- €","- €","- €","- €"]
[null,"Professeur (PR, PU-PH…)",null,null,null,null,null,null,1,null,null,null,null,null,100,"",null,null,null,null,null,null,null,"Part3",null,0,"- €","- €",0,"- €","- €","",0,"-",0,"- €","- €","- €","- €","- €","- €","- €",0,0,"-","- €","- €","- €","- €","- €"]
[null,"Maître de conférence (MCF, MCU-PH…)",null,null,null,null,null,null,2,null,null,null,null,null,100,"",null,null,null,null,null,null,null,"Part4",null,0,"- €","- €",0,"- €","- €","",0,"-",0,"- €","- €","- €","- €","- €","- €","- €",0,0,"-","- €","- €","- €","- €","- €"]
[null,"Chercheur (DR/CR…)",null,null,null,null,null,null,3,null,null,null,null,null,null,"",null,null,null,null,null,null,null,"Part5","Totaux",null,"- €","- €","- €","- €","- €","","-","-","- €","- €","- €","- €","- €","- €","- €","- €","-","- €","-","- €","- €","- €","- €","- €"]
[null,"Ingénieur (IR/IE, IRH, IEH…)",null,null,null,null,null,null,null,null,null,"Total",null,null,null,"- €","- €",null,null,null,null,null,null,"Part6",null,null,null,null,null,null,null,null,"-"]
[null,"Technicien/Assistant ingénieur (TEC, AI, TC…)",null,null,null,null,null,null,"Personnels SANS financement ANR",null,null,null,null,null,null,null,null,null,"Personnels",null,null,null,null,"Part7"]
[null,null,null,null,null,null,null,null,null,null,null,null,null,null,null,null,null,null,null,null,null,null,null,"Part8","Montant total des apports (en M€)",null,null,"- k€",null,null,"Ratio Coût complet/\nAide demandée",null,"-"]
[null,"Doctorant",null,null,null,null,null,null,null,null,"Catégorie de personnel","Descriptif","WP(s) ET tâche(s) concernés","Coût mensuel\n(en €)","Personne. Mois","Coût total\n(en €)",null,null,"Statutaires",null,null,null,null,"Part9","Coût complet du projet (en M€)"]
[null,"Doctorant CIFRE",null,null,null,null,null,null,null,null,null,null,null,null,null,null,null,null,"CDI",null,null,null,null,"Part10","Montant total de l'aide demandée (en M€)",null,null,"- k€"]
[null,"Chercheur/Post-doctorant",null,null,null,null,null,null,null,null,null,null,null,null,null,null,null,null,"CDD",null,null,null,null,"Total","Montant total des co-financements (en M€)"]
[null,"Ingénieur (IR/IE, IRH, IEH…)",null,null,null,null,null,null,1,null,null,null,null,null,null,"",null,null,"Vacataires"]
[null,"Technicien/Assistant ingénieur (TEC, AI, TC…)",null,null,null,null,null,null,2,null,null,null,null,null,null,"",null,null,"Autres",null,null,null,null,"Répartition budgétaire par WP"]
[null,"Assistant de recherche clinique (ARC)",null,null,null,null,null,null,3,null,null,null,null,null,null,"",null,null,null,null,null,null,null,null,null,"Total","WP1","WP2","WP3","WP4","WP5",null,null,null,null,null,null,"N° de SIRET"]
[null,"Personnel infirmier",null,null,null,null,null,null,null,null,null,"Total",null,null,"-","- €",null,null,null,null,null,null,null,"Partenaire vide",null,0,0,0,null,null,0,null,null,null,null,null,null,""]
[null,"Coordinateur d'études clinques (CEC)",null,null,null,null,null,null,"Personnels AVEC financement ANR",null,null,null,null,null,null,null,null,null,null,null,null,null,null,"Part1-Coord",null,"Coût marginal",0,0,null,null," ",null,null,null,null,null,null,""]
[null,"Chef de projt de recherche clinique",null,null,null,null,null,null,null,null,null,null,null,null,null,null,null,null,null,null,null,null,null,"Part2",null,0,0,0,null,null,0,null,null,null,null,null,null,""]
[null,"Gestionnaire de données biomédicales",null,null,null,null,null,null,null,null,"Catégorie de personnel","Descriptif et commentaires éventuels","WP(s) ET tâche(s) concernés","Coût mensuel\n(en €)","Personne. Mois","Coût total\n(en €)","Aide demandée\n(en €)",null,null,null,null,null,null,"Part3",null,"Coût complet",0,0,null,null,0,null,null,null,null,null,null,""]
[null,"Autre",null,null,null,null,null,null,null,null,null,null,null,null,null,null,null,null,null,null,null,null,null,null,null,null,null,null,null,null,null,null,null,null,null,null,null,1]
[null,null,null,null,null,null,null,null,null,null,null,null,null,null,null,null,null,null,null,null,null,null,null,"NOTA : Toutes les champs de cet onglet \"Volet général\" doivent être renseignés.\nIls seront utilisés par les membres du jury au cours du processus de sélection."]
[null,"Chercheur/Post-doctorant",null,null,null,null,null,null,1,null,null,null,null,null,null,""]
[null,"Ingénieur (IR/IE, IRH, IEH…)",null,null,null,null,null,null,2,null,null,null,null,null,null,"",null,null,null,null,null,null,null,"Remarque : toutes les informations figurant ci-dessus ont vocation à être publiées si le projet est financé.\nEn déposant un dossier, les partenaires ont accepté la publication de toutes ces informations."]
[null,"Technicien/Assistant ingénieur (TEC, AI, TC…)",null,null,null,null,null,null,3,null,null,null,null,null,null,""]
[null,"Assistant de recherche clinique (ARC)",null,null,null,null,null,null,null,null,null,"Total",null,null,"-","- €","- €"]
[null,"Personnel infirmier",null,null,null,null,null,null,"Personnels avec financement ANR en contrat à durée indéterminée",null,null,null,null,null,null,null,null,null,null,null,null,null,null,null,"Responsable scientifique et technique (RST)",null,null,null,null,null,null,null,null,null,null,"Personne habilitée à engager l'établissement coordinateur (EC)"]
[null,"Coordinateur d'études clinques (CEC)"]
[null,"Chef de projt de recherche clinique",null,null,null,null,null,null,null,null,"Catégorie de personnel","Descriptif et commentaires éventuels","WP(s) ET tâche(s) concernés","Coût mensuel\n(en €)","Personne. Mois","Coût total\n(en €)","Aide demandée\n(en €)",null,null,null,null,null,null,null,"Prénom",null,"Nom",null,null,null,null,null,null,null,null,"Prénom",null,"Nom"]
[null,"Gestionnaire de données biomédicales",null,null,null,null,null,null,null,null,null,null,null,null,null,null,null,null,null,null,null,null,null,null,"",null,"",null,null,null,null,null,null,null,null,"",null,""]
[null,"Autre",null,null,null,null,null,null,null,null,null,null,null,null,null,null,null,null,null,null,null,null,null,null,null,null,null,null,null,null,null,null,null,null,null,"Qualité"]
[null,null,null,null,null,null,null,null,1,null,null,null,null,null,null,"",null,null,null,null,null,null,null,null,null,null,null,null,null,null,null,null,null,null,null,""]
[null,"Mme",null,null,null,null,null,null,2,null,null,null,null,null,null,""]
[null,"M.",null,null,null,null,null,null,3,null,null,null,null,null,null,""]
[null,null,null,null,null,null,null,null,null,null,null,"Total",null,null,"-","- €","- €"]
[null,null,null,null,null,null,null,null,"Prestations de service externes"]
[]
[null,null,null,null,null,null,null,null,null,null,null,"Descriptif","WP(s) ET tâche(s) concernés",null,null,"Coût total\n(en €)","Aide demandée\n(en €)"]
[]
[]
[null,null,null,null,null,null,null,null,1]
[null,null,null,null,null,null,null,null,2]
[null,null,null,null,null,null,null,null,3]
[null,null,null,null,null,null,null,null,null,null,null,"Total",null,null,null,"- €","- €"]
[null,null,null,null,null,null,null,null,"Missions"]
[]
[null,null,null,null,null,null,null,null,null,null,null,"Descriptif","WP(s) ET tâche(s) concernés",null,null,"Coût total\n(en €)","Aide demandée\n(en €)"]
[]
[]
[null,null,null,null,null,null,null,null,1]
[null,null,null,null,null,null,null,null,2]
[null,null,null,null,null,null,null,null,3]
[null,null,null,null,null,null,null,null,null,null,null,"Total",null,null,null,"- €","- €"]
[null,"Veuillez choisir la base de calcul de l'aide pour définir les modalités de calcul des frais de gestion ou frais de structure",null,null,null,null,null,null,"Autres dépenses externes (consommables, petits matériels …)"]
[]
[null,null,null,null,null,null,null,null,null,null,null,"Descriptif","WP(s) ET tâche(s) concernés",null,null,"Coût total\n(en €)","Aide demandée\n(en €)"]
[]
[]
[null,null,null,null,null,null,null,null,1]
[null,null,null,null,null,null,null,null,2]
[null,null,null,null,null,null,null,null,3]
[null,null,null,null,null,null,null,null,null,null,null,"Total",null,null,null,"- €","- €"]
["Workpachages","Aide demandée\n(en €)","Apports (en €)","Commentaire",null,null,null,null,"Autres dépenses justifiées par une procédure de facturation interne"]
["Numéro","Intitulé"]
["WP1",null,null,null,null,null,null,null,null,null,null,"Descriptif","WP(s) ET tâche(s) concernés","Coût unitaire (en €)","Nombre","Coût total\n(en €)","Aide demandée\n(en €)"]
["WP2"]
["WP3"]
["WP4",null,null,null,null,null,null,null,1,null,null,null,null,null,null,""]
["WP5",null,null,null,null,null,null,null,2,null,null,null,null,null,null,""]
["WP6",null,null,null,null,null,null,null,3,null,null,null,null,null,null,""]
["WP7",null,null,null,null,null,null,null,null,null,null,"Total",null,null,null,"- €","- €"]
["WP8",null,null,null,null,null,null,null,"Frais de gestion et d'environnement (uniquement pour les organismes publics)",null,null,null,null,null,null,null,null,null,"Frais de structure"]
["WP9"]
["WP10",null,null,null,null,null,null,null,null,null,null,"Descriptif",null,"Taux (en %)",null,"Coût total\n(en €)","Aide demandée\n(en €)",null,"Veuillez choisir la base de calcul de l'aide au préalable."]
["WP11"]
["WP12"]
["WP13",null,null,null,null,null,null,100,1,null,null,"Taux d'environnement (compris entre 0 et 100 %)",null,null,null,"- €","- €",null,"Part assise sur les dépenses de personnel (max. 68% des dépenses de personnel)"]
["WP14"]
["WP15",null,null,null,null,null,null,{"$error":"#REF!"},2,null,null,"Frais de gestion (Max. 8% des coûts entrant dans l'assiette de l'aide)",null,null,null,"- €","- €",null,"Part assise sur les autres dépenses (max. 7% des autres coûts hors facturation interne)"]
["Totaux"]
[null,null,null,null,null,null,null,null,null,null,null,"Total",null,null,null,"- €","- €"]
[null,"coût complet"]
[null,"Frais de structure"]
[null,"Part assise sur les dépenses de personnel (max. 68% des dépenses de personnel)",null,null,null,null,null,null,null,null,null,"Montant total de l'apport du partenaire fondateur (en €)",null,"- €"]
[null,"Part assise sur les autres dépenses (max. 7% des autres coûts hors facturation interne)"]
[null,"Veuillez choisir la base de calcul de l'aide pour définir les modalités de calcul des frais de gestion ou frais de structure",null,null,null,null,null,null,null,null,null,"Total coûts éligibles pour le calcul de l'aide : Total assiette de l'aide (en €)",null,null,null,"- €"]
[null,"coût marginal"]
[null,"Frais de gestion et d'environnement",null,null,null,null,null,null,null,null,100,"Taux d'aide demandé (%) : Taux maximum de 100 %"]
[null,"Taux d'environnement (compris entre 0 et 100 %)"]
[null,"Frais de gestion (Max. 8% des coûts entrant dans l'assiette de l'aide)",null,null,null,null,null,null,null,null,null,"Aide demandée (en €)",null,null,null,"- €"]
[]
[]
[]
[]
[]
[null,null,null,null,null,null,null,null,"Identification des financeurs (nom, adresse) (Obligatoire)",null,null,"Nature et objet du financement et, le cas échéant, WP(s) et tâche(s) concernés","Montant sollicité",null,"Montant obtenu",null,"Date effective ou prévue du co-financement"]
[]
[]
[]
[]
[]
[]
[]
[null,null,null,null,null,null,null,null,null,null,null,"Total du partenaire","- €",null,"- €"]
[]
[null,null,null,null,null,null,null,null,"Publication d'informations relatives au projet"]
[]
[null,null,null,null,null,null,null,null,"Si le projet est retenu pour financement, l'ANR se réserve la possibilité de rendre publiques les informations suivantes : nom du correpondant scientifique et technique et adresse électronique, dénominations des partenaires qu'ils soient des entreprises ou qu'ils appartiennent à un organisme de recherche.\r\nToutefois, pour un projet de recherche partenariale organisme de recherche / entreprise retenu pour financement, l'ANR ne rendra pas publiques les informations sur les personnes ou les partenaires qui en auront fait le demande."]
[]
[]
[]
[]
[null,null,null,null,null,null,null,null,"En cas de refus de publication d'un ou de plusieurs de ces éléments, remplacer ci-dessous la mention \"Oui\" par \"Non\" : "]
[null,null,null,null,null,null,null,null,"Nom et prénom du correspondant scientifique :",null,null,null,null,null,"Oui"]
[null,null,null,null,null,null,null,null,"Adresse électronique du correspondant scientifique : ",null,null,null,null,null,"Oui"]
[null,null,null,null,null,null,null,null,"Dénomination du partenaire (si \"Non\", celle-ci sera remplacée par la mention générique \"Entreprise\" ou \"Organisme de recherche\") : ",null,null,null,null,null,"Oui"]
[]
[null,null,null,null,null,null,null,null,"Nota : en déposant un projet, les partenaires ont accepté que l'ANR publie l'acronyme, le titre, le résumé, l'aide accordée au projet, la date de début de projet et la durée."]
[]
[null,null,null,null,null,null,null,null,"Commentaires (le cas échéant)"]
[]
[]
[]
[]
[]
[]
[null,null,null,null,null,null,null,null,"Les informations personnelles transmises dans ces documents sont obligatoires et seront conservées en fichiers par l'ANR pour assurer la conduite opérationnelle de l'évaluation et l'administration des dossiers.\nConformément à la loi n° 78-17 du 6 janvier 1978 modifiée, relative à l'Informatique, aux Fichiers et aux Libertés, les personnes concernées disposent d'un droit d'accès et de rectification des données personnelles les concernant. Les personnes concernées peuvent exercer ce droit en s'adressant à l'ANR (voir coordonnées dans le texte de l’appel à projets)."]
[]
[]
[]
[null,null,null,null,null,null,null,null,"Engagement de l'établissement coordinateur - N'omettez pas la signature de la lettre d'engagement.",null,null,null,null,null,null,null,null,null,"Engagement de l'établissement partenaire - N'omettez pas la signature de la lettre d'engagement."]
[]
[null,null,null,null,null,null,null,null,"Responsable scientifique et technique (RST)",null,null,null,"Personne habilitée à engager l'établissement coordinateur (EC)",null,null,null,null,null,"Personne habilitée à engager l'établissement partanaire (EP)"]
[]
[null,null,null,null,null,null,null,null,"Prénom",null,"Nom",null,"Prénom",null,"Nom"]
[null,null,null,null,null,null,null,null,null,null,null,null,"",null,""]
[null,null,null,null,null,null,null,null,null,null,null,null,"Qualité"]
[null,null,null,null,null,null,null,null,null,null,null,null,""]
[]
[null,null,null,null,null,null,null,null,"Erreur : les données concernant le projet ne sont pas toutes renseignées."]
[]
[null,null,null,null,null,null,null,null,"Erreur : les données concernant le PF ne sont pas toutes renseignées."]
[null,null,null,null,null,null,null,null,"Erreur : les données concernant la personne habilitée à engager le PF ne sont pas toutes renseignées."]
[]
[]
[null,null,null,null,null,null,null,null,"Erreur : les données concernant l'EC ne sont pas toutes renseignées."]
[null,null,null,null,null,null,null,null,"Erreur : les données concernant la personne habilitée à engager l'EC ne sont pas toutes renseignées."]
[]
[null,null,null,null,null,null,null,null,"Erreur : veuillez choisir au préalable la méthode de calcul de l'aide (coût marginal ou coût complet)."]
[]
[null,null,null,null,null,null,null,null,"Erreur : le taux n'est pas renseigné."]
[null,null,null,null,null,null,null,null,"Erreur : le taux n'est pas correct."]
[null,null,null,null,null,null,null,null,"Erreur : le montant est supérieur au montant autorisé"]
[]
[null,null,null,null,null,null,null,null,"erreur"]
[]
[]
[null,null,null,null,null,null,null,null,"Co-financements et soutiens financiers (sollicités ou obtenus) de partenaires autres que les fondateurs"]
[null,null,null,null,null,null,null,null,"Préciser les mises à disposition de locaux, équipements, personnels, etc. pour le projet et, le cas échéant, indiquer le(s) WP(s) concernées"]
[]
[null,null,null,null,null,null,null,null,"Identification des financeurs (nom, adresse) "]
[null,null,null,null,null,null,null,null,"Nature et objet du financement et, le cas échéant, WP(s) "]
[null,null,null,null,null,null,null,null,"Montant sollicité"]
[null,null,null,null,null,null,null,null,"Montant obtenu"]
[null,null,null,null,null,null,null,null,"Date effective ou prévue du co-financement"]
[null,null,null,null,null,null,null,null,"Total"]

{"sheet":"Notice","index":1,"n_rows":64,"n_cols":8,"rows_kept":64,"cut":false,"hidden":false,"merged":[[62,1,62,7],[63,1,63,7],[58,1,58,7],[60,1,60,7],[61,1,61,7],[52,1,52,7],[53,1,53,5],[53,6,53,7],[55,1,55,7],[57,1,57,7],[9,1,9,7],[0,2,3,6],[4,2,4,6],[6,0,6,7],[8,0,8,7],[0,7,3,8],[4,7,4,8],[10,1,10,7],[12,1,12,7],[13,0,13,7],[14,1,14,2],[14,4,14,7],[21,1,21,7],[18,1,18,3],[18,4,18,7],[19,4,19,7],[11,1,11,7],[20,0,20,7],[15,1,15,3],[15,4,15,7],[16,1,16,3],[16,4,16,7],[17,1,17,3],[17,4,17,7],[22,1,22,7],[26,0,26,7],[27,1,27,7],[28,1,28,7],[29,1,29,7],[23,0,23,7],[24,1,24,7],[25,1,25,7],[30,1,30,7],[31,1,31,5],[31,6,31,7],[33,1,33,7],[35,1,35,7],[51,1,51,7],[48,0,48,7],[49,1,49,7],[50,1,50,7],[36,1,36,7],[47,1,47,7],[39,1,39,7],[40,1,40,7],[42,1,42,7],[43,1,43,7],[44,1,44,7],[45,1,45,7]]}
[null,null,"Appel à projets IHU2",null,null,null,null,"Edition 2017"]
[]
[]
[]
[null,"VERSION Edition 2017","Document administratif et financier - Notice",null,null,null,null,{"$f":"\"ANR-17-IHU2-00\"&I5","v":"ANR-17-IHU2-00"}]
[]
["Notice d'utilisation du \"document de soumission Administratif et Financier\""]
[]
["RECOMMANDATIONS IMPORTANTES"]
[null,"Seules les cellules colorées en vert sont à renseigner. Les autres cellules sont complétées automatiquement à partir des données fournies (report d'un autre onglet ou résultat d'un calcul)."]
[null,"Afin de garantir l'intégrité de l'ensemble des données calculées automatiquement et ne pas perturber l'exploitation ultérieure des tableaux par l'ANR, il est indispensable de ne pas modifier la structure générale des tableaux ni le nom des onglets.\nCertaines modifications sont cependant possibles après avoir activer les macros. \nVous pouvez notamment ajouter des lignes au sein des tableaux détaillant la répartition de l'aide ou des apports par poste de dépenses (onglets partenaires) en utilisant le bouton \"+\" situé à gauche de chaque début de tableau."]
[null,"Tous les montants financiers sont en € et hors taxes (HT) majorés, le cas échéant, de la TVA non récupérable."]
[null,"PENSER A VERIFIER QUE VOUS AVEZ ACTIVE LE CONTENU DE VOTRE FICHIER AFIN QUE LES MACROS SOIENT ACTIVEES !"]
["Si aucun message d'avertissement concernant les macros ne s'affiche à l'ouverture du classeur, veuillez suivre la procédure suivante :"]
[null,"Version Microsoft Office 2003-2007 :",null,null,"Version Microsoft Office 2010-2016 :"]
[null,"- Ouvrez le Menu Outils/Option",null,null,"- Ouvrez le Menu Fichier"]
[null,"- Sélectionnez l'onglet Sécurité",null,null,"- Cliquer sur l'icône Options"]
[null,"- Cliquez sur le bouton Sécurité des macros...\n- Dans l'onglet Niveau de sécurité, choisissez Niveau de sécurité moyen",null,null,"- Sélectionnez Centre de gestion de la confidentialité et cliquer sur Paramètres du centre de gestion de la confidentialité"]
[null,"- Faites Ok et ouvrez le classeur à nouveau",null,null,"- Sélectionner Paramètres des macros…"]
[null,null,null,null,"- Cocher Désactiver toutes les macros avec notification"]
["1 - Onglet \"Volet_general\""]
[null,"1-1 Renseigner les cellules sur fond vert (fiche d'identité du projet). "]
[null,"1-2 Le tableau récapitulatif de cet onglet (aide et apports par partenaire) est complété automatiquement à partir des données saisies au sein des onglets de chaque partenaire."]
["2 - Onglet \"Workpackages\""]
[null,"Renseigner le tableau en consacrant une ligne par workpackage et en respectant l'ordre défini dans le document scientifique.\n"]
[null,"Veillez à ce que les totaux des colonnes \"aide demandée\" et \"apports\" soient cohérents avec ceux du tableau récapitulatif du volet général."]
["3 - Onglet \"Part1-Coord\""]
[null,"Le premier onglet \"partenaire\" est dédié à l'établissement coordinateur qui sera seul bénéficiaire de l'aide ANR."]
[null,"3-1 Identification du partenaire :"]
[null,"Renseigner dans cette partie :\n- le nom complet et le sigle de l'établissement coordinateur. Ces informations seront reprises automatiquement dans certains tableaux récapitulatifs et doivent être identiques à celles saisies sur le site de soumission ;\n- la forme juridique de l'établissement coordinateur (menu déroulant). S'il s'agit d'une structure en création ou à créer ultérieurement, indiquer \"structure à créer\" ;\n- préciser le n° de SIRET de l'établissement (ou préciser \"pas de SIRET\")"]
[null,"Pour toutes les catégories de partenaires (sauf strucutres en création ou à créer ultérieurement) : renseigner les informations relatives à l'identité de la personne habilitée à représenter juridiquement l'établissement coordinateur. Cette personne doit être identique à celle qui signe la lettre d'engagement pour l'établissement coordinateur."]
[null,"En cas de doute, il est conseillé de faire appel aux contacts figurant dans l'appel à projets ou via le courriel : ",null,null,null,null,"ihu@agencerecherche.fr"]
[null,"3-2 Informations budgétaires :"]
[null,"Renseigner les tableaux par catégorie de dépenses. \nLes calculs s'effectuent automatiquement : les cellules sur fond blanc comportent des formules et sont verrouillées. \nSi besoin, vous pouvez insérer des lignes à chaque tableau après activation de la macro correspondante : suivre les indications spécifiées au début de cette notice.\nPour chaque dépense, il est nécessaire de préciser la part d'aide demandée. La part d'apports est ensuite calculée automatiquement à partir du coût complet de la dépense. Les apports ne sont pas pris en compte dans le calcul de l'aide demandée mais le sont dans celui du coût complet du projet."]
[null,"3-2-1 Equipements"]
[null,"Sont considérées comme dépenses d'équipement, les matériels dont la valeur unitaire est supérieur à 4000€ HT.\nEn règle générale, si le matériel est non réutilisable après le projet, on considère le coût d'achat ; si le matériel est réutilisable après la réalisation de l'opération, seule rentre dans l'assiette de l'aide la part des amortissements calculée au prorata de la durée d'utilisation (% utilisation)."]
[null,"Les montants sont à renseigner hors taxes (HT) augmentés éventuellement de la TVA non récupérable. En conséquence, les montants indiqués doivent prendre en compte la proportion x de TVA non récupérable de l'organisme. [coût = coût HT * (1+ x *0.20)].  "]
[null,"3-2-2 Personnels"]
[null,"3-2-2-1 Personnel sans financement ANR"]
[null,"Renseigner la catégorie de personnel concernée (statutaires, CDI, CDD, vacataires, autre), le coût mensuel total (salaires bruts, primes diverses, et charges patronales, y compris la taxe sur les salaires), et le nombre total de Personne.mois (une personne à temps plein pendant un an = 12 Personne.mois). Le coût total pour la durée du projet s'effectue alors automatiquement et se reporte dans la partie apports. "]
[null,"Important : Pour un enseignant chercheur, ne compter que la partie du coût salarial correspondant à la part consacrée au projet dans son activité de recherche (50% du salaire et des charges salariales pour 100% du temps de recherche consacré au projet)."]
[null,"3-2-2-2 Personnel avec financement ANR                                                                                                                        "]
[null,"Il s'agit des personnels qui font l'objet d'une demande d'aide financière partielle ou totale : personnels en CDD, CDI, stagiaires, doctorants, post-doctorants, etc."]
[null,"Renseigner le coût mensuel total (salaires bruts, primes diverses, et charges patronales, y compris la taxe sur les salaires), et le nombre total de Personne.mois (une personne à temps plein pendant un an = 12 Personne.mois) ; le coût total pour la durée du projet s'effectue alors automatiquement. "]
[null,"3-2-3 Prestations de service, missions, dépenses sur facturation interne, autres dépenses :"]
[null,"Les montants sont à renseigner hors taxes (HT) augmenté éventuellement de la TVA non récupérable. En conséquence, les montants indiqués doivent prendre en compte la proportion x de TVA non récupérable fonction de l'organisme [coût = coût HT * (1+ x *0.20)]. "]
[null,"3-2-4 Frais de gestion et d'environnement"]
[null,"Les taux à appliquer sont à préciser dans la limite du maximum autorisé.\nLes frais d'environnement n'entrent pas dans le calcul de l'aide mais dans celui du coût complet du projet. Le taux à appliquer est propre à l'organisme et ces frais s'ajoutent aux coûts salariaux totaux.\nLes frais de gestion forfaitaires sont calculés sur la base d'un taux appliqué sur les dépenses entrant dans le calcul de l'aide et sont plafonnés à 8%.\n"]
["4 - Onglets \"Part2\", \"Part3\"…"]
[null,"Chaque partenaire fondateur de l'IHU renseigne l'onglet qui lui correspond en respectant le même ordre dans l'ensemble des documents de soumission (administratif & financier et scientifique).\nSi l'établissement coordinateur est un des partenaires fondateurs, il ne complète qu'un seul onglet : l'onglet \"Part-1-Coord\".\nLes partenaires non fondateurs ne complètent pas d'onglet. Leurs apports peuvent apparaître dans le § 4 du document scientifique (plan de développement) dans lequel il est prévu d'indiquer les différentes sources de financement."]
[null,"4-1 Identification du partenaire :"]
[null,"Renseigner dans cette partie :\n- le nom complet et le sigle du partenaire fondateur. Ces informations seront reprises automatiquement dans certains tableaux récapitulatifs ;\n- la forme juridique du partenaire fondateur (menu déroulant) ;\n- préciser le n° de SIRET de l'établissement (ou préciser \"pas de SIRET\")."]
[null,"Pour toutes les catégories de partenaires : renseigner les informations relatives à l'identité de la personne habilitée à représenter juridiquement le partenaire fondateur. Cette personne doit être identique à celle qui signe la lettre d'engagement."]
[null,"En cas de doute, il est conseillé de faire appel aux contacts figurant dans l'appel à projets ou via le courriel : ",null,null,null,null,"ihu@agencerecherche.fr"]
[null,"4-2 Informations budgétaires :"]
[null,"Renseigner les tableaux par catégorie de dépenses. \nLes calculs s'effectuent automatiquement : les cellules sur fond blanc comportent des formules et sont verrouillées. \nSi besoin, vous pouvez insérer des lignes à chaque tableau après activation de la macro correspondante : suivre les indications spécifiées au début de cette notice."]
[null,"4-2-1 Equipements"]
[null,"Sont considérées comme dépenses d'équipement, les matériels dont la valeur unitaire est supérieur à 4000€ HT.\nEn règle générale, si le matériel est non réutilisable après le projet, on considère le coût d'achat ; si le matériel est réutilisable après la réalisation de l'opération, seule rentre dans l'assiette de l'aide la part des amortissements calculée au prorata de la durée d'utilisation (% utilisation)."]
[null,"Les montants sont à renseigner hors taxes (HT) augmentés éventuellement de la TVA non récupérable. En conséquence, les montants indiqués doivent prendre en compte la proportion x de TVA non récupérable de l'organisme. [coût = coût HT * (1+ x *0.20)].  "]
[null,"4-2-2 Personnels"]
[null,"Renseigner la catégorie de personnel concernée (statutaires, CDI, CDD, vacataires, autre), le coût mensuel total (salaires bruts, primes diverses, et charges patronales, y compris la taxe sur les salaires), et le nombre total de Personne.mois (une personne à temps plein pendant un an = 12 Personne.mois). Le coût total pour la durée du projet s'effectue alors automatiquement et se reporte dans la partie apports. "]
[null,"Important : Pour un enseignant chercheur, ne compter que la partie du coût salarial correspondant à la part consacrée au projet dans son activité de recherche (50% du salaire et des charges salariales pour 100% du temps de recherche consacré au projet)."]
[null,"3-2-3 Prestations de service, missions, dépenses sur facturation interne, autres dépenses :"]
[null,"Les montants sont à renseigner hors taxes (HT) augmenté éventuellement de la TVA non récupérable. En conséquence, les montants indiqués doivent prendre en compte la proportion x de TVA non récupérable fonction de l'organisme [coût = coût HT * (1+ x *0.20)]. "]

{"sheet":"Volet_general","index":2,"n_rows":46,"n_cols":13,"rows_kept":46,"cut":false,"hidden":false,"merged":[[45,4,45,6],[23,4,23,5],[25,1,35,1],[28,4,28,5],[29,4,29,5],[30,4,30,5],[31,4,31,5],[32,4,32,5],[35,4,35,5],[35,2,35,3],[25,4,25,5],[26,4,26,5],[27,4,27,5],[37,1,37,3],[33,4,33,5],[34,4,34,5],[37,4,37,5],[39,1,39,3],[40,2,40,3],[40,4,40,5],[41,1,41,3],[39,4,39,6],[41,4,41,6],[18,12,21,12],[18,10,21,10],[9,6,9,7],[16,0,16,12],[18,8,21,8],[18,6,21,6],[18,9,21,9],[9,0,9,2],[9,3,9,5],[10,0,11,1],[10,3,10,7],[11,3,11,7],[18,1,21,1],[18,2,21,3],[18,4,21,5],[18,11,21,11],[43,1,43,3],[43,4,43,6],[45,1,45,3],[1,9,1,12],[2,9,2,12],[3,2,4,9],[6,0,6,7],[7,0,7,7],[0,0,4,1],[0,2,2,7],[0,8,0,12],[3,10,4,12],[13,0,13,2],[13,3,13,4],[13,5,13,6],[18,7,21,7]]}
[null,null,{"$f":"Notice!C1","v":"Appel à projets IHU2"},null,null,null,null,null,"Réservé à l'ANR"]
[null,null,null,null,null,null,null,null,{"$f":"ListesDéroulantes!M3","v":"N° de dossier"},{"$f":"Notice!H5","v":"ANR-17-IHU2-00"}]
[null,null,null,null,null,null,null,null,{"$f":"ListesDéroulantes!M4","v":"Acronyme"},{"$f":"IF(D10<>\"\",D10,\"\")","v":""}]
[null,null,{"$f":"ListesDéroulantes!Z6","v":"Document administratif et financier"},null,null,null,null,null,null,null,{"$f":"Notice!H1","v":"Edition 2017"}]
[]
[]
[{"$f":"ListesDéroulantes!X9","v":"Volet général"}]
[{"$f":"ListesDéroulantes!X10","v":"Fiche d'identité du projet"},null,null,null,null,null,null,null,null,null,"Equipements / Equipment",null,{"$f":"G24","v":"- €"}]
[null,null,null,null,null,null,null,null,null,null,"Personnel / Staff",null,{"$f":"H24","v":"- €"}]
[{"$f":"ListesDéroulantes!X12","v":"Acronyme du projet"},null,null,null,null,null,null,null,null,null,"PS / Outsourcing",null,{"$f":"I24","v":"- €"}]
[{"$f":"ListesDéroulantes!X13","v":"Titre du projet"},null,{"$f":"ListesDéroulantes!Z13","v":"en francais"},null,null,null,null,null,null,null,"Missions / Travel",null,{"$f":"J24","v":"- €"}]
[null,null,{"$f":"ListesDéroulantes!Z14","v":"en anglais"},null,null,null,null,null,null,null,"DepExternes / consumables",null,{"$f":"K24","v":"- €"}]
[null,null,null,null,null,null,null,null,null,null,"Facturation interne / Internal billing",null,{"$f":"M24","v":"- €"}]
[{"$f":"ListesDéroulantes!X19","v":"Durée du projet (en mois)"},null,null,{"$f":"ListesDéroulantes!AA19","v":120},null,null,null,null,null,null,"Frais de gestion / Overhead",null,{"$f":"M24","v":"- €"}]
[]
[]
[{"$f":"ListesDéroulantes!X24","v":"Récapitulatif des demandes financières de l'établissement coordinateur et des apports des partenaires"}]
[]
[null,null,{"$f":"ListesDéroulantes!X31","v":"Etablissement partenaire"},null,{"$f":"ListesDéroulantes!AB28","v":"Total (€)"},null,{"$f":"ListesDéroulantes!AD28","v":"Equipements ou amortissement d'équipements de R&D"},{"$f":"ListesDéroulantes!AI28","v":"Personnel (€)"},{"$f":"ListesDéroulantes!AE28","v":"Prestations de service externes"},{"$f":"ListesDéroulantes!AJ28","v":"Missions"},{"$f":"ListesDéroulantes!AK28","v":"Autres dépenses externes (consommables, petits matériels …)"},{"$f":"ListesDéroulantes!AL28","v":"Autres dépenses justifiées par une procédure de facturation interne"},"Frais de gestion"]
[]
[]
[]
[]
[null,{"$f":"ListesDéroulantes!Y32","v":"Aide"},{"$f":"ListesDéroulantes!X32","v":"EC-Part1"},{"$f":"'Part1-Coord'!D10","v":0},{"$f":"IF(('Part1-Coord'!$J$98)<>0,'Part1-Coord'!$J$98,\"- €\")","v":"- €"},null,{"$f":"IF(('Part1-Coord'!$J$32)<>0,'Part1-Coord'!$J$32,\"- €\")","v":"- €"},{"$f":"IF(('Part1-Coord'!$J$50)<>0,'Part1-Coord'!$J$50,\"- €\")","v":"- €"},{"$f":"IF(('Part1-Coord'!$J$59)<>0,'Part1-Coord'!$J$59,\"- €\")","v":"- €"},{"$f":"IF(('Part1-Coord'!$J$68)<>0,'Part1-Coord'!$J$68,\"- €\")","v":"- €"},{"$f":"IF(('Part1-Coord'!$J$77)<>0,'Part1-Coord'!$J$77,\"- €\")","v":"- €"},{"$f":"IF(('Part1-Coord'!$J$86)<>0,'Part1-Coord'!$J$86,\"- €\")","v":"- €"},{"$f":"IF(('Part1-Coord'!$J$93)<>0,'Part1-Coord'!$J$93,\"- €\")","v":"- €"}]
[]
[null,{"$f":"ListesDéroulantes!Y33","v":"Apports"},{"$f":"ListesDéroulantes!X32","v":"EC-Part1"},{"$f":"'Part1-Coord'!D10","v":0},{"$f":"IF(('Part1-Coord'!$K$98)<>0,'Part1-Coord'!$K$98,\"- €\")","v":"- €"},null,{"$f":"IF(('Part1-Coord'!$K$32)<>0,'Part1-Coord'!$K$32,\"- €\")","v":"- €"},{"$f":"IF((SUM('Part1-Coord'!K41,'Part1-Coord'!K50)<>0),SUM('Part1-Coord'!K41,'Part1-Coord'!K50),\"- €\")","v":"- €"},{"$f":"IF(('Part1-Coord'!$K$59)<>0,'Part1-Coord'!$K$59,\"- €\")","v":"- €"},{"$f":"IF(('Part1-Coord'!$K$68)<>0,'Part1-Coord'!$K$68,\"- €\")","v":"- €"},{"$f":"IF(('Part1-Coord'!$K$77)<>0,'Part1-Coord'!$K$77,\"- €\")","v":"- €"},{"$f":"IF(('Part1-Coord'!$K$86)<>0,'Part1-Coord'!$K$86,\"- €\")","v":"- €"}]
[null,null,{"$f":"ListesDéroulantes!X33","v":"Part2"},{"$f":"Part2!$D$10","v":0},{"$f":"IF((Part2!$G$79)<>0,Part2!$G$79,\"- €\")","v":"- €"},null,{"$f":"IF((Part2!$I$31)<>0,Part2!$I$31,\"- €\")","v":"- €"},{"$f":"IF((Part2!$I$40)<>0,(Part2!$I$40),\"- €\")","v":"- €"},{"$f":"IF((Part2!$I$49)<>0,Part2!$I$49,\"- €\")","v":"- €"},{"$f":"IF((Part2!$I$58)<>0,Part2!$I$58,\"- €\")","v":"- €"},{"$f":"IF((Part2!$I$67)<>0,Part2!$I$67,\"- €\")","v":"- €"},{"$f":"IF((Part2!$I$76)<>0,Part2!$I$76,\"- €\")","v":"- €"}]
[null,null,{"$f":"ListesDéroulantes!X34","v":"Part3"},{"$f":"Part3!$D$10","v":0},{"$f":"IF((Part3!$G$79)<>0,Part3!$G$79,\"- €\")","v":"- €"},null,{"$f":"IF((Part3!$I$31)<>0,Part3!$I$31,\"- €\")","v":"- €"},{"$f":"IF((Part3!$I$40)<>0,(Part3!$I$40),\"- €\")","v":"- €"},{"$f":"IF((Part3!$I$49)<>0,Part3!$I$49,\"- €\")","v":"- €"},{"$f":"IF((Part3!$I$58)<>0,Part3!$I$58,\"- €\")","v":"- €"},{"$f":"IF((Part3!$I$67)<>0,Part3!$I$67,\"- €\")","v":"- €"},{"$f":"IF((Part3!$I$76)<>0,Part3!$I$76,\"- €\")","v":"- €"}]
[null,null,{"$f":"ListesDéroulantes!X35","v":"Part4"},{"$f":"Part4!$D$10","v":0},{"$f":"IF((Part4!$G$79)<>0,Part4!$G$79,\"- €\")","v":"- €"},null,{"$f":"IF((Part4!$I$31)<>0,Part4!$I$31,\"- €\")","v":"- €"},{"$f":"IF((Part4!$I$40)<>0,(Part4!$I$40),\"- €\")","v":"- €"},{"$f":"IF((Part4!$I$49)<>0,Part4!$I$49,\"- €\")","v":"- €"},{"$f":"IF((Part4!$I$58)<>0,Part4!$I$58,\"- €\")","v":"- €"},{"$f":"IF((Part4!$I$67)<>0,Part4!$I$67,\"- €\")","v":"- €"},{"$f":"IF((Part4!$I$76)<>0,Part4!$I$76,\"- €\")","v":"- €"}]
[null,null,{"$f":"ListesDéroulantes!X36","v":"Part5"},{"$f":"Part5!$D$10","v":0},{"$f":"IF((Part5!$G$79)<>0,Part5!$G$79,\"- €\")","v":"- €"},null,{"$f":"IF((Part5!$I$31)<>0,Part5!$I$31,\"- €\")","v":"- €"},{"$f":"IF((Part5!$I$40)<>0,(Part5!$I$40),\"- €\")","v":"- €"},{"$f":"IF((Part5!$I$49)<>0,Part5!$I$49,\"- €\")","v":"- €"},{"$f":"IF((Part5!$I$58)<>0,Part5!$I$58,\"- €\")","v":"- €"},{"$f":"IF((Part5!$I$67)<>0,Part5!$I$67,\"- €\")","v":"- €"},{"$f":"IF((Part5!$I$76)<>0,Part5!$I$76,\"- €\")","v":"- €"}]
[null,null,{"$f":"ListesDéroulantes!X37","v":"Part6"},{"$f":"Part6!$D$10","v":0},{"$f":"IF((Part6!$G$79)<>0,Part6!$G$79,\"- €\")","v":"- €"},null,{"$f":"IF((Part6!$I$31)<>0,Part6!$I$31,\"- €\")","v":"- €"},{"$f":"IF((Part6!$I$40)<>0,(Part6!$I$40),\"- €\")","v":"- €"},{"$f":"IF((Part6!$I$49)<>0,Part6!$I$49,\"- €\")","v":"- €"},{"$f":"IF((Part6!$I$58)<>0,Part6!$I$58,\"- €\")","v":"- €"},{"$f":"IF((Part6!$I$67)<>0,Part6!$I$67,\"- €\")","v":"- €"},{"$f":"IF((Part6!$I$76)<>0,Part6!$I$76,\"- €\")","v":"- €"}]
[null,null,{"$f":"ListesDéroulantes!X38","v":"Part7"},{"$f":"Part7!$D$10","v":0},{"$f":"IF((Part7!$G$79)<>0,Part7!$G$79,\"- €\")","v":"- €"},null,{"$f":"IF((Part7!$I$31)<>0,Part7!$I$31,\"- €\")","v":"- €"},{"$f":"IF((Part7!$I$40)<>0,(Part7!$I$40),\"- €\")","v":"- €"},{"$f":"IF((Part7!$I$49)<>0,Part7!$I$49,\"- €\")","v":"- €"},{"$f":"IF((Part7!$I$58)<>0,Part7!$I$58,\"- €\")","v":"- €"},{"$f":"IF((Part7!$I$67)<>0,Part7!$I$67,\"- €\")","v":"- €"},{"$f":"IF((Part7!$I$76)<>0,Part7!$I$76,\"- €\")","v":"- €"}]
[null,null,{"$f":"ListesDéroulantes!X39","v":"Part8"},{"$f":"Part8!$D$10","v":0},{"$f":"IF((Part8!$G$79)<>0,Part8!$G$79,\"- €\")","v":"- €"},null,{"$f":"IF((Part8!$I$31)<>0,Part8!$I$31,\"- €\")","v":"- €"},{"$f":"IF((Part8!$I$40)<>0,(Part8!$I$40),\"- €\")","v":"- €"},{"$f":"IF((Part8!$I$49)<>0,Part8!$I$49,\"- €\")","v":"- €"},{"$f":"IF((Part8!$I$58)<>0,Part8!$I$58,\"- €\")","v":"- €"},{"$f":"IF((Part8!$I$67)<>0,Part8!$I$67,\"- €\")","v":"- €"},{"$f":"IF((Part8!$I$76)<>0,Part8!$I$76,\"- €\")","v":"- €"}]
[null,null,{"$f":"ListesDéroulantes!X40","v":"Part9"},{"$f":"Part9!$D$10","v":0},{"$f":"IF((Part9!$G$79)<>0,Part9!$G$79,\"- €\")","v":"- €"},null,{"$f":"IF((Part9!$I$31)<>0,Part9!$I$31,\"- €\")","v":"- €"},{"$f":"IF((Part9!$I$40)<>0,(Part9!$I$40),\"- €\")","v":"- €"},{"$f":"IF((Part9!$I$49)<>0,Part9!$I$49,\"- €\")","v":"- €"},{"$f":"IF((Part9!$I$58)<>0,Part9!$I$58,\"- €\")","v":"- €"},{"$f":"IF((Part9!$I$67)<>0,Part9!$I$67,\"- €\")","v":"- €"},{"$f":"IF((Part9!$I$76)<>0,Part9!$I$76,\"- €\")","v":"- €"}]
[null,null,{"$f":"ListesDéroulantes!X41","v":"Part10"},{"$f":"Part10!$D$10","v":0},{"$f":"IF((Part10!$G$79)<>0,Part10!$G$79,\"- €\")","v":"- €"},null,{"$f":"IF((Part10!$I$31)<>0,Part10!$I$31,\"- €\")","v":"- €"},{"$f":"IF((Part10!$I$40)<>0,(Part10!$I$40),\"- €\")","v":"- €"},{"$f":"IF((Part10!$I$49)<>0,Part10!$I$49,\"- €\")","v":"- €"},{"$f":"IF((Part10!$I$58)<>0,Part10!$I$58,\"- €\")","v":"- €"},{"$f":"IF((Part10!$I$67)<>0,Part10!$I$67,\"- €\")","v":"- €"},{"$f":"IF((Part10!$I$76)<>0,Part10!$I$76,\"- €\")","v":"- €"}]
[null,null,{"$f":"ListesDéroulantes!X42","v":"Total"},null,{"$f":"IF(SUM(E26:F35)<>0,SUM(E26:F35),\"- €\")","v":"- €"},null,{"$f":"IF(SUM(G26:G35)<>0,SUM(G26:G35),\"- €\")","v":"- €"},{"$f":"IF(SUM(H26:H35)<>0,SUM(H26:H35),\"- €\")","v":"- €"},"- €","- €","- €",{"$f":"IF(SUM(L26:L35)<>0,SUM(L26:L35),\"- €\")","v":"- €"}]
[]
[null,{"$f":"ListesDéroulantes!X30","v":"Coût total"},null,null,{"$f":"IF(SUM(E24:F35)<>0,SUM(E24:F35),\"- €\")","v":"- €"},null,{"$f":"IF(SUM(G24:G35)<>0,SUM(G24:G35),\"- €\")","v":"- €"},"- €","- €","- €","- €",{"$f":"IF(SUM(L24:L35)<>0,SUM(L24:L35),\"- €\")","v":"- €"}]
[]
[null,{"$f":"ListesDéroulantes!Y41","v":"Montant total de l'aide demandée (en M€)"},null,null,{"$f":"IF(ISNUMBER(E24),E24/1000000,\"- M€\")","v":"- M€"}]
[]
[null,{"$f":"ListesDéroulantes!Y39","v":"Montant total des apports (en M€)"},null,null,{"$f":"IF(SUM(E26:F35)<>0,SUM(E26:F35)/1000000,\"- M€\")","v":"- M€"}]
[]
[null,{"$f":"ListesDéroulantes!Y42","v":"Montant total des co-financements (en M€)"},null,null,{"$f":"IF(AND(ISNUMBER('Part1-Coord'!$J$111),('Part1-Coord'!$J$111)<>0),'Part1-Coord'!$J$111/1000000,\"- M€\")","v":"- M€"}]
[]
[null,{"$f":"ListesDéroulantes!Y40","v":"Coût complet du projet (en M€)"},null,null,{"$f":"IF(SUM(E40,E42,E44)<>0,SUM(E40,E42,E44),\"- M€\")","v":"- M€"}]

{"sheet":"Workpackages","index":3,"n_rows":28,"n_cols":13,"rows_kept":28,"cut":false,"hidden":false,"merged":[[0,0,4,1],[0,2,2,5],[0,6,0,10],[3,2,4,9],[6,0,6,8],[1,6,1,7],[2,6,2,7],[2,8,2,10],[3,10,4,10],[1,8,1,10],[27,2,27,7],[18,2,18,7],[19,2,19,7],[17,2,17,7],[16,2,16,7],[26,2,26,7],[25,2,25,7],[24,2,24,7],[23,2,23,7],[20,2,20,7],[21,2,21,7],[22,2,22,7],[12,0,12,1],[12,2,12,7],[9,8,11,8],[9,10,11,10],[9,0,10,7],[11,2,11,7],[11,0,11,1],[9,9,11,9],[15,2,15,7],[14,2,14,7],[13,2,13,7],[16,0,16,1],[17,0,17,1],[13,0,13,1],[14,0,14,1],[15,0,15,1],[27,0,27,1],[18,0,18,1],[19,0,19,1],[20,0,20,1],[21,0,21,1],[24,0,24,1],[25,0,25,1],[22,0,22,1],[23,0,23,1],[26,0,26,1]]}
[null,null,{"$f":"Notice!C1","v":"Appel à projets IHU2"},null,null,null,{"$f":"ListesDéroulantes!M2","v":"Réservé à l'ANR"}]
[null,null,null,null,null,null,{"$f":"ListesDéroulantes!M3","v":"N° de dossier"},null,{"$f":"Notice!H5","v":"ANR-17-IHU2-00"}]
[null,null,null,null,null,null,{"$f":"ListesDéroulantes!M4","v":"Acronyme"},null,{"$f":"IF(Volet_general!D10<>\"\",Volet_general!D10,\"\")","v":""}]
[null,null,{"$f":"ListesDéroulantes!Z6","v":"Document administratif et financier"},null,null,null,null,null,null,null,{"$f":"Notice!H1","v":"Edition 2017"}]
[]
[]
[{"$f":"ListesDéroulantes!X44","v":"Répartition budgétaire par WP"}]
[]
[]
[{"$f":"ListesDéroulantes!A92","v":"Workpachages"},null,null,null,null,null,null,null,{"$f":"ListesDéroulantes!B92","v":"Aide demandée\n(en €)"},{"$f":"ListesDéroulantes!C92","v":"Apports (en €)"},{"$f":"ListesDéroulantes!D92","v":"Commentaire"}]
[]
[{"$f":"ListesDéroulantes!A93","v":"Numéro"},null,{"$f":"ListesDéroulantes!B93","v":"Intitulé"}]
[{"$f":"ListesDéroulantes!A94","v":"WP1"}]
[{"$f":"ListesDéroulantes!A95","v":"WP2"}]
[{"$f":"ListesDéroulantes!A96","v":"WP3"}]
[{"$f":"ListesDéroulantes!A97","v":"WP4"}]
[{"$f":"ListesDéroulantes!A98","v":"WP5"}]
[{"$f":"ListesDéroulantes!A99","v":"WP6"}]
[{"$f":"ListesDéroulantes!A100","v":"WP7"}]
[{"$f":"ListesDéroulantes!A101","v":"WP8"}]
[{"$f":"ListesDéroulantes!A102","v":"WP9"}]
[{"$f":"ListesDéroulantes!A103","v":"WP10"}]
[{"$f":"ListesDéroulantes!A104","v":"WP11"}]
[{"$f":"ListesDéroulantes!A105","v":"WP12"}]
[{"$f":"ListesDéroulantes!A106","v":"WP13"}]
[{"$f":"ListesDéroulantes!A107","v":"WP14"}]
[{"$f":"ListesDéroulantes!A108","v":"WP15"}]
[{"$f":"ListesDéroulantes!A109","v":"Totaux"},null,null,null,null,null,null,null,{"$f":"IF(SUM(I13:I27)<>0,SUM(I13:I27),\"- €\")","v":"- €"},{"$f":"IF(SUM(J13:J27)<>0,SUM(J13:J27),\"- €\")","v":"- €"},null,null,{"$f":"IF(ISNUMBER(J28)=ISNUMBER(Volet_general!#REF!),\"\",ListesDéroulantes!A110)","v":""}]

{"sheet":"Part1-Coord","index":4,"n_rows":121,"n_cols":12,"rows_kept":121,"cut":false,"hidden":false,"merged":[[93,11,93,12],[59,1,60,9],[120,1,122,10],[94,1,95,9],[113,1,113,10],[115,1,118,10],[97,5,97,7],[88,6,90,7],[52,4,54,7],[55,4,55,7],[56,4,56,7],[57,4,57,7],[61,4,63,7],[64,4,64,7],[65,4,65,7],[66,4,66,7],[70,4,72,7],[73,4,73,7],[74,4,74,7],[75,4,75,7],[88,8,90,8],[88,9,90,9],[88,4,90,5],[82,4,82,5],[90,11,91,12],[30,3,30,5],[77,1,78,9],[79,6,81,6],[79,7,81,7],[79,8,81,8],[79,9,81,9],[79,4,81,5],[30,1,30,2],[37,1,37,2],[38,1,38,2],[82,1,82,3],[83,1,83,3],[84,1,84,3],[39,1,39,2],[46,1,46,2],[47,1,47,2],[48,1,48,2],[63,11,63,12],[64,11,64,12],[65,11,65,12],[68,1,69,9],[88,3,90,3],[70,2,72,2],[92,11,92,12],[79,10,81,10],[88,10,90,10],[79,1,81,1],[79,2,81,2],[79,3,81,3],[72,11,72,12],[73,11,73,12],[74,11,74,12],[73,1,73,3],[74,1,74,3],[75,1,75,3],[91,1,91,3],[91,4,91,5],[91,6,91,7],[92,1,92,3],[92,4,92,5],[92,6,92,7],[81,11,81,12],[82,11,82,12],[83,11,83,12],[86,1,87,9],[88,2,90,2],[83,4,83,5],[55,11,55,12],[56,11,56,12],[52,1,54,1],[52,2,54,2],[52,3,54,3],[52,10,54,10],[46,4,46,5],[47,4,47,5],[70,3,72,3],[61,10,63,10],[70,10,72,10],[66,1,66,3],[64,1,64,3],[65,1,65,3],[61,1,63,1],[61,2,63,2],[61,3,63,3],[61,8,63,8],[61,9,63,9],[70,8,72,8],[70,9,72,9],[70,1,72,1],[47,11,47,12],[43,7,45,7],[43,8,45,8],[43,9,45,9],[45,11,45,12],[46,11,46,12],[52,8,54,8],[52,9,54,9],[54,11,54,12],[30,11,30,12],[48,4,48,5],[34,10,36,10],[43,10,45,10],[32,1,33,9],[34,1,36,1],[34,2,36,2],[34,3,36,3],[34,6,36,6],[34,7,36,7],[34,8,36,8],[34,9,36,9],[34,4,36,5],[36,11,36,12],[37,11,37,12],[38,11,38,12],[41,1,42,9],[43,1,45,1],[43,2,45,2],[43,3,45,3],[43,6,45,6],[43,4,45,5],[37,4,37,5],[38,4,38,5],[25,11,27,12],[28,11,28,12],[29,11,29,12],[23,1,24,9],[25,1,27,1],[25,2,27,2],[25,6,27,6],[25,7,27,7],[25,10,27,10],[25,3,27,5],[28,3,28,5],[29,3,29,5],[28,1,28,2],[29,1,29,2],[14,11,14,12],[17,0,17,2],[17,11,20,12],[18,0,18,2],[19,0,19,2],[20,0,20,2],[15,1,15,10],[18,3,18,10],[19,3,19,10],[6,11,6,12],[9,0,9,2],[10,0,10,2],[0,0,2,4],[0,11,4,12],[1,5,1,6],[2,5,2,6],[4,1,4,10],[0,5,0,10],[1,7,1,10],[2,7,2,10],[102,10,106,10],[102,8,106,8],[102,4,106,7],[107,4,107,7],[11,0,12,2],[11,3,12,3],[13,0,13,2],[6,0,7,2],[9,6,9,7],[10,6,10,7],[11,6,11,7],[6,3,7,10],[13,6,13,9],[22,1,22,10],[20,3,20,10],[25,8,27,8],[25,9,27,9],[84,4,84,5],[55,1,55,3],[56,1,56,3],[57,1,57,3],[39,4,39,5],[50,1,51,9],[108,1,108,3],[109,1,109,3],[108,4,108,7],[109,4,109,7],[110,4,110,7],[99,1,99,9],[100,1,100,9],[102,1,106,3],[107,1,107,3],[102,9,106,9]]}
[{"$f":"ListesDéroulantes!H2&1&ListesDéroulantes!I2","v":"Fiche partenaire n°1 : Identification et budget"},null,null,null,null,{"$f":"ListesDéroulantes!M2","v":"Réservé à l'ANR"},null,null,null,null,null,{"$f":"IF(COUNTIF(L6:L1536,\"Err*\")>0,COUNTIF(L6:L1536,\"Err*\")&\" \"&ListesDéroulantes!I184&IF(COUNTIF(L6:L1536,\"Err*\")>1,\"s\",\"\"),\"\")","v":"3 erreurs"}]
[null,null,null,null,null,{"$f":"ListesDéroulantes!M3","v":"N° de dossier"},null,{"$f":"Notice!H5","v":"ANR-17-IHU2-00"}]
[null,null,null,null,null,{"$f":"ListesDéroulantes!M4","v":"Acronyme"},null,{"$f":"IF(Volet_general!D10<>\"\",Volet_general!D10,\"\")","v":""}]
[]
[null,{"$f":"ListesDéroulantes!I6","v":"Identification de l'établissement coordinateur (EC)"}]
[]
[{"$f":"ListesDéroulantes!H8","v":"Nom complet de l'EC"},null,null,null,null,null,null,null,null,null,null,{"$f":"IF(OR(D7=\"\",D10=\"\",D12=\"\",G11=\"\",G12=\"\"),ListesDéroulantes!I175,\"\")","v":"Erreur : les données concernant l'EC ne sont pas toutes renseignées."}]
[]
[]
[{"$f":"ListesDéroulantes!H11","v":"Sigle de l'EC"},null,null,null,null,null,{"$f":"ListesDéroulantes!K16","v":"Saisir un n°SIRET de 14digits"}]
[null,null,null,null,null,{"$f":"ListesDéroulantes!H16","v":"N° de SIRET"}]
[{"$f":"ListesDéroulantes!H13","v":"Forme juridique de l'EC"},null,null,null,null,{"$f":"ListesDéroulantes!H18","v":"Assujetti à la TVA "}]
[]
[null,null,null,null,null,{"$f":"ListesDéroulantes!L11","v":"Base de calcul de l'assiette de l'aide "},{"$f":"ListesDéroulantes!B116","v":"coût marginal"},null,null,null,null,{"$f":"IF(OR(G14=\"\"),ListesDéroulantes!I178,\"\")","v":""}]
[]
[null,{"$f":"ListesDéroulantes!I20","v":"Personne habilitée à représenter juridiquement l'établissement coordinateur (pour signature de la convention attributive d'aide)"}]
[]
[{"$f":"ListesDéroulantes!H22","v":"Genre"}]
[{"$f":"ListesDéroulantes!H23","v":"Prénom"}]
[{"$f":"ListesDéroulantes!H24","v":"Nom"}]
[{"$f":"ListesDéroulantes!H25","v":"Qualité"}]
[]
[null,{"$f":"ListesDéroulantes!I27","v":"Demande financière ANR détaillée du projet (montant HT en €, incluant la TVA non récupérable le cas échéant)"}]
[null,{"$f":"ListesDéroulantes!I28","v":"Equipements ou amortissement d'équipements de R&D (supérieur à 4 000 € HT)"}]
[]
[null,null,null,{"$f":"ListesDéroulantes!L30","v":"Descriptif"},null,null,{"$f":"ListesDéroulantes!N30","v":"Coût d'achat\n(en €)"},{"$f":"ListesDéroulantes!O30","v":"Pourcentage\nd'utilisation\n(en%)"},{"$f":"ListesDéroulantes!P30","v":"Coût total\n(en €)"},{"$f":"ListesDéroulantes!Q30","v":"Aide demandée\n(en €) "},{"$f":"ListesDéroulantes!H30","v":"Apport (en €)"}]
[]
[]
[null,{"$f":"B28+1","v":1},null,null,null,null,null,null,{"$f":"IF(AND(G29<>0,H29<>0),G29*H29,\"\")","v":""},null,{"$f":"IF(G29*H29<>0,I29-J29,\"\")","v":""}]
[null,{"$f":"B29+1","v":2},null,null,null,null,null,null,{"$f":"IF(AND(G30<>0,H30<>0),G30*H30,\"\")","v":""},null,{"$f":"IF(G30*H30<>0,I30-J30,\"\")","v":""}]
[null,{"$f":"B30+1","v":3},null,null,null,null,null,null,{"$f":"IF(AND(G31<>0,H31<>0),G31*H31,\"\")","v":""},null,{"$f":"IF(G31*H31<>0,I31-J31,\"\")","v":""}]
[null,null,null,null,"Total",null,null,null,{"$f":"IF(SUM(I29:I31)<>0,SUM(I29:I31),\"- €\")","v":"- €"},{"$f":"IF(SUM(J29:J31)<>0,SUM(J29:J31),\"- €\")","v":"- €"},{"$f":"IF(SUM(K29:K31)<>0,SUM(K29:K31),\"- €\")","v":"- €"}]
[null,{"$f":"ListesDéroulantes!I38","v":"Personnels SANS financement ANR"}]
[]
[null,null,null,{"$f":"ListesDéroulantes!K40","v":"Catégorie de personnel"},{"$f":"ListesDéroulantes!L40","v":"Descriptif"},null,{"$f":"ListesDéroulantes!N40","v":"Coût mensuel\n(en €)"},{"$f":"ListesDéroulantes!O40","v":"Personne. Mois"},{"$f":"ListesDéroulantes!P40","v":"Coût total\n(en €)"},null,{"$f":"ListesDéroulantes!H30","v":"Apport (en €)"}]
[]
[]
[null,{"$f":"B37+1","v":1},null,null,null,null,null,null,{"$f":"IF(G38*H38<>0,G38*H38,\"\")","v":""},null,{"$f":"IF(I38<>0,I38,\"\")","v":""}]
[null,{"$f":"B38+1","v":2},null,null,null,null,null,null,{"$f":"IF(G39*H39<>0,G39*H39,\"\")","v":""},null,{"$f":"IF(I39<>0,I39,\"\")","v":""}]
[null,{"$f":"B39+1","v":3},null,null,null,null,null,null,{"$f":"IF(G40*H40<>0,G40*H40,\"\")","v":""},null,{"$f":"IF(I40<>0,I40,\"\")","v":""}]
[null,null,null,null,"Total",null,null,{"$f":"IF(SUM(H38:H40)<>0,SUM(H38:H40),\"-\")","v":"-"},{"$f":"IF(SUM(I38:I40)<>0,SUM(I38:I40),\"- €\")","v":"- €"},null,{"$f":"IF(SUM(K38:K40)<>0,SUM(K38:K40),\"- €\")","v":"- €"}]
[null,{"$f":"ListesDéroulantes!I47","v":"Personnels AVEC financement ANR"}]
[]
[null,null,null,{"$f":"ListesDéroulantes!K49","v":"Catégorie de personnel"},{"$f":"ListesDéroulantes!L49","v":"Descriptif et commentaires éventuels"},null,{"$f":"ListesDéroulantes!N49","v":"Coût mensuel\n(en €)"},{"$f":"ListesDéroulantes!O49","v":"Personne. Mois"},{"$f":"ListesDéroulantes!P49","v":"Coût total\n(en €)"},{"$f":"ListesDéroulantes!Q49","v":"Aide demandée\n(en €)"},{"$f":"ListesDéroulantes!H30","v":"Apport (en €)"}]
[]
[]
[null,{"$f":"B46+1","v":1},null,null,null,null,null,null,{"$f":"IF(G47*H47<>0,G47*H47,\"\")","v":""},null,{"$f":"IF(G47*H47<>0,I47-J47,\"\")","v":""}]
[null,{"$f":"B47+1","v":2},null,null,null,null,null,null,{"$f":"IF(G48*H48<>0,G48*H48,\"\")","v":""},null,{"$f":"IF(G48*H48<>0,I48-J48,\"\")","v":""}]
[null,{"$f":"B48+1","v":3},null,null,null,null,null,null,{"$f":"IF(G49*H49<>0,G49*H49,\"\")","v":""},null,{"$f":"IF(G49*H49<>0,I49-J49,\"\")","v":""}]
[null,null,null,null,"Total",null,null,{"$f":"IF(SUM(H47:H49)<>0,SUM(H47:H49),\"-\")","v":"-"},{"$f":"IF(SUM(I47:I49)<>0,SUM(I47:I49),\"- €\")","v":"- €"},{"$f":"IF(SUM(J47:J49)<>0,SUM(J47:J49),\"- €\")","v":"- €"},{"$f":"IF(SUM(K47:K49)<>0,SUM(K47:K49),\"- €\")","v":"- €"}]
[null,{"$f":"ListesDéroulantes!I65","v":"Prestations de service externes"}]
[]
[null,null,null,null,{"$f":"ListesDéroulantes!L67","v":"Descriptif"},null,null,null,{"$f":"ListesDéroulantes!P67","v":"Coût total\n(en €)"},{"$f":"ListesDéroulantes!Q67","v":"Aide demandée\n(en €)"},{"$f":"ListesDéroulantes!H30","v":"Apport (en €)"}]
[]
[]
[null,{"$f":"B55+1","v":1},null,null,null,null,null,null,null,null,{"$f":"IF(I56<>0,I56-J56,\"\")","v":""}]
[null,{"$f":"B56+1","v":2},null,null,null,null,null,null,null,null,{"$f":"IF(I57<>0,I57-J57,\"\")","v":""}]
[null,{"$f":"B57+1","v":3},null,null,null,null,null,null,null,null,{"$f":"IF(I58<>0,I58-J58,\"\")","v":""}]
[null,null,null,null,"Total",null,null,null,{"$f":"IF(SUM(I56:I58)<>0,SUM(I56:I58),\"- €\")","v":"- €"},{"$f":"IF(SUM(J56:J58)<>0,SUM(J56:J58),\"- €\")","v":"- €"},{"$f":"IF(SUM(K56:K58)<>0,SUM(K56:K58),\"- €\")","v":"- €"}]
[null,{"$f":"ListesDéroulantes!I74","v":"Missions"}]
[]
[null,null,null,null,{"$f":"ListesDéroulantes!L76","v":"Descriptif"},null,null,null,{"$f":"ListesDéroulantes!P76","v":"Coût total\n(en €)"},{"$f":"ListesDéroulantes!Q76","v":"Aide demandée\n(en €)"},{"$f":"ListesDéroulantes!H30","v":"Apport (en €)"}]
[]
[]
[null,{"$f":"B64+1","v":1},null,null,null,null,null,null,null,null,{"$f":"IF(I65<>0,I65-J65,\"\")","v":""}]
[null,{"$f":"B65+1","v":2},null,null,null,null,null,null,null,null,{"$f":"IF(I66<>0,I66-J66,\"\")","v":""}]
[null,{"$f":"B66+1","v":3},null,null,null,null,null,null,null,null,{"$f":"IF(I67<>0,I67-J67,\"\")","v":""}]
[null,null,null,null,"Total",null,null,null,{"$f":"IF(SUM(I65:I67)<>0,SUM(I65:I67),\"- €\")","v":"- €"},{"$f":"IF(SUM(J65:J67)<>0,SUM(J65:J67),\"- €\")","v":"- €"},{"$f":"IF(SUM(K65:K67)<>0,SUM(K65:K67),\"- €\")","v":"- €"}]
[null,{"$f":"ListesDéroulantes!I83","v":"Autres dépenses externes (consommables, petits matériels …)"}]
[]
[null,null,null,null,{"$f":"ListesDéroulantes!L85","v":"Descriptif"},null,null,null,{"$f":"ListesDéroulantes!P85","v":"Coût total\n(en €)"},{"$f":"ListesDéroulantes!Q85","v":"Aide demandée\n(en €)"},{"$f":"ListesDéroulantes!H30","v":"Apport (en €)"}]
[]
[]
[null,{"$f":"B73+1","v":1},null,null,null,null,null,null,null,null,{"$f":"IF(I74<>0,I74-J74,\"\")","v":""}]
[null,{"$f":"B74+1","v":2},null,null,null,null,null,null,null,null,{"$f":"IF(I75<>0,I75-J75,\"\")","v":""}]
[null,{"$f":"B75+1","v":3},null,null,null,null,null,null,null,null,{"$f":"IF(I76<>0,I76-J76,\"\")","v":""}]
[null,null,null,null,"Total",null,null,null,{"$f":"IF(SUM(I74:I76)<>0,SUM(I74:I76),\"- €\")","v":"- €"},{"$f":"IF(SUM(J74:J76)<>0,SUM(J74:J76),\"- €\")","v":"- €"},{"$f":"IF(SUM(K74:K76)<>0,SUM(K74:K76),\"- €\")","v":"- €"}]
[null,{"$f":"ListesDéroulantes!I92","v":"Autres dépenses justifiées par une procédure de facturation interne"}]
[]
[null,null,null,null,{"$f":"ListesDéroulantes!L94","v":"Descriptif"},null,{"$f":"ListesDéroulantes!N94","v":"Coût unitaire (en €)"},{"$f":"ListesDéroulantes!O94","v":"Nombre"},{"$f":"ListesDéroulantes!P94","v":"Coût total\n(en €)"},{"$f":"ListesDéroulantes!Q94","v":"Aide demandée\n(en €)"},{"$f":"ListesDéroulantes!H30","v":"Apport (en €)"}]
[]
[]
[null,{"$f":"B82+1","v":1},null,null,null,null,null,null,{"$f":"IF(G83*H83<>0,G83*H83,\"\")","v":""},null,{"$f":"IF(G83*H83<>0,I83-J83,\"\")","v":""}]
[null,{"$f":"B83+1","v":2},null,null,null,null,null,null,{"$f":"IF(G84*H84<>0,G84*H84,\"\")","v":""},null,{"$f":"IF(G84*H84<>0,I84-J84,\"\")","v":""}]
[null,{"$f":"B84+1","v":3},null,null,null,null,null,null,{"$f":"IF(G85*H85<>0,G85*H85,\"\")","v":""},null,{"$f":"IF(G85*H85<>0,I85-J85,\"\")","v":""}]
[null,null,null,null,"Total",null,null,null,{"$f":"IF(SUM(I83:I85)<>0,SUM(I83:I85),\"- €\")","v":"- €"},{"$f":"IF(SUM(J83:J85)<>0,SUM(J83:J85),\"- €\")","v":"- €"},{"$f":"IF(SUM(K83:K85)<>0,SUM(K83:K85),\"- €\")","v":"- €"}]
[null,{"$f":"IF(OR($G$14=ListesDéroulantes!B111),ListesDéroulantes!B112,IF(OR($G$14=ListesDéroulantes!B116),ListesDéroulantes!B117,ListesDéroulantes!B115))","v":"Frais de gestion et d'environnement"}]
[]
[null,null,null,null,{"$f":"ListesDéroulantes!L103","v":"Descriptif"},null,{"$f":"ListesDéroulantes!N103","v":"Taux (en %)"},null,{"$f":"ListesDéroulantes!P103","v":"Coût total\n(en €)"},{"$f":"ListesDéroulantes!Q103","v":"Aide demandée\n(en €)"},{"$f":"ListesDéroulantes!H30","v":"Apport (en €)"}]
[]
[null,null,null,null,null,null,null,null,null,null,null,{"$f":"IF(ISNUMBER(G92),IF(G92>100%,ListesDéroulantes!I181,\"\"),ListesDéroulantes!I180)","v":"Erreur : le taux n'est pas renseigné."}]
[null,{"$f":"B91+1","v":1},null,null,{"$f":"IF(OR($G$14=ListesDéroulantes!B111),ListesDéroulantes!B113,IF(OR($G$14=ListesDéroulantes!B116),ListesDéroulantes!B118,\"\"))","v":"Taux d'environnement (compris entre 0 et 100 %)"},null,null,null,{"$f":"IF(OR(G92<>0),G92*SUM(I41,I50),\"- €\")","v":"- €"},null,{"$f":"IF($G$92<>0,$I$92,\"\")","v":""}]
[null,{"$f":"B92+1","v":2},null,null,{"$f":"IF(OR($G$14=ListesDéroulantes!B111),ListesDéroulantes!B114,IF(OR($G$14=ListesDéroulantes!B116),ListesDéroulantes!B119,\"\"))","v":"Frais de gestion (Max. 8% des coûts entrant dans l'assiette de l'aide)"},null,null,null,{"$f":"IF(OR(G93<>0),G93*SUM(J32,J50,J59,J68,J77,J86),\"- €\")","v":"- €"},null,{"$f":"IF(G93*SUM(J32,J50,J59,J68,J77,J86)<>0,I93-J93,\"\")","v":""},{"$f":"IF(ISNUMBER(G93),IF(G93>8%,ListesDéroulantes!I181,\"\"),ListesDéroulantes!I180)","v":"Erreur : le taux n'est pas renseigné."}]
[null,null,null,null,"Total",null,null,null,{"$f":"IF(SUM(I92:I93)<>0,SUM(I92:I93),\"- €\")","v":"- €"},{"$f":"IF(SUM(J92:J93)<>0,SUM(J92:J93),\"- €\")","v":"- €"},{"$f":"IF(SUM(K92:K93)<>0,SUM(K92:K93),\"- €\")","v":"- €"},{"$f":"IF(ISNUMBER(J93),IF(J93>I93,ListesDéroulantes!I182,\"\"),\"\")","v":""}]
[]
[]
[null,null,null,null,null,null,null,null,{"$f":"ListesDéroulantes!P103","v":"Coût total\n(en €)"},{"$f":"ListesDéroulantes!Q103","v":"Aide demandée\n(en €)"},{"$f":"ListesDéroulantes!H30","v":"Apport (en €)"}]
[null,null,null,null,null,{"$f":"ListesDéroulantes!L133","v":"Total du partenaire"},null,null,{"$f":"IF(SUM(I32,I41,I50,I59,I68,I77,I86,I94)<>0,SUM(I32,I41,I50,I59,I68,I77,I86,I94),\"- €\")","v":"- €"},{"$f":"IF(SUM(J32,J41,J50,J59,J68,J77,J86,J94)<>0,SUM(J32,J41,J50,J59,J68,J77,J86,J94),\"- €\")","v":"- €"},{"$f":"IF(SUM(K32,K41,K50,K59,K68,K77,K86,K94)<>0,SUM(K32,K41,K50,K59,K68,K77,K86,K94),\"- €\")","v":"- €"}]
[]
[null,{"$f":"ListesDéroulantes!I187","v":"Co-financements et soutiens financiers (sollicités ou obtenus) de partenaires autres que les fondateurs"}]
[null,{"$f":"ListesDéroulantes!I188","v":"Préciser les mises à disposition de locaux, équipements, personnels, etc. pour le projet et, le cas échéant, indiquer le(s) WP(s) concernées"}]
[]
[null,{"$f":"ListesDéroulantes!I190","v":"Identification des financeurs (nom, adresse) "},null,null,{"$f":"ListesDéroulantes!I191","v":"Nature et objet du financement et, le cas échéant, WP(s) "},null,null,null,{"$f":"ListesDéroulantes!I192","v":"Montant sollicité"},{"$f":"ListesDéroulantes!I193","v":"Montant obtenu"},{"$f":"ListesDéroulantes!I194","v":"Date effective ou prévue du co-financement"}]
[]
[]
[]
[]
[]
[]
[]
[null,null,null,null,"Total",null,null,null,{"$f":"IF(SUM(I108:I110)<>0,SUM(I108:I110),\"- €\")","v":"- €"},{"$f":"IF(SUM(J108:J110)<>0,SUM(J108:J110),\"- €\")","v":"- €"}]
[]
[]
[null,{"$f":"ListesDéroulantes!I149","v":"Commentaires (le cas échéant)"}]
[]
[]
[]
[]
[]
[]
[null,{"$f":"ListesDéroulantes!I156","v":"Les informations personnelles transmises dans ces documents sont obligatoires et seront conservées en fichiers par l'ANR pour assurer la conduite opérationnelle de l'évaluation et l'administration des dossiers.\nConformément à la loi n° 78-17 du 6 janvier 1978 modifiée, relative à l'Informatique, aux Fichiers et aux Libertés, les personnes concernées disposent d'un droit d'accès et de rectification des données personnelles les concernant. Les personnes concernées peuvent exercer ce droit en s'adressant à l'ANR (voir coordonnées dans le texte de l’appel à projets)."}]

{"sheet":"Part2","index":5,"n_rows":89,"n_cols":11,"rows_kept":89,"cut":false,"hidden":false,"merged":[[56,4,56,5],[63,4,63,5],[64,4,64,5],[65,4,65,5],[72,4,72,5],[73,4,73,5],[74,4,74,5],[60,4,62,5],[69,4,71,5],[58,1,59,9],[60,1,62,1],[60,2,62,2],[60,3,62,3],[60,6,62,6],[60,7,62,7],[60,8,62,8],[60,9,62,9],[63,1,63,3],[64,1,64,3],[65,1,65,3],[56,1,56,3],[54,1,54,3],[55,1,55,3],[36,4,36,5],[37,4,37,5],[38,4,38,5],[45,4,45,5],[46,4,46,5],[45,1,45,3],[46,1,46,3],[49,1,50,9],[51,1,53,1],[51,2,53,2],[51,3,53,3],[51,6,53,6],[51,7,53,7],[51,8,53,8],[51,9,53,9],[47,4,47,5],[51,4,53,5],[47,1,47,3],[54,4,54,5],[42,4,44,5],[40,1,41,9],[55,4,55,5],[33,8,35,8],[33,9,35,9],[42,7,44,7],[42,8,44,8],[42,9,44,9],[36,1,36,2],[37,1,37,2],[38,1,38,2],[39,1,39,6],[42,1,44,1],[42,2,44,2],[42,3,44,3],[42,6,44,6],[81,1,81,9],[83,1,86,9],[88,1,90,9],[78,4,79,5],[78,6,79,7],[78,8,79,9],[76,1,77,9],[67,1,68,9],[69,1,71,1],[69,2,71,2],[69,3,71,3],[69,6,71,6],[69,7,71,7],[69,8,71,8],[69,9,71,9],[72,1,72,3],[73,1,73,3],[74,1,74,3],[31,1,32,9],[33,1,35,1],[33,2,35,2],[33,3,35,3],[33,6,35,6],[24,10,26,10],[21,1,21,9],[22,1,23,9],[24,1,26,1],[24,2,26,2],[24,3,26,3],[24,6,26,6],[24,7,26,7],[24,8,26,8],[24,9,26,9],[24,4,26,5],[27,4,27,5],[28,4,28,5],[29,4,29,5],[27,1,27,3],[28,1,28,3],[29,1,29,3],[33,4,35,5],[33,7,35,7],[14,1,14,9],[16,0,16,2],[16,10,19,10],[17,0,17,2],[17,3,17,9],[18,0,18,2],[18,3,18,9],[19,0,19,2],[19,3,19,9],[13,0,13,2],[6,0,7,2],[6,3,7,9],[9,6,9,7],[10,6,10,7],[11,6,11,7],[6,10,7,10],[9,0,9,2],[10,0,10,2],[0,0,2,4],[0,5,0,9],[0,10,4,10],[1,5,1,6],[1,7,1,9],[2,5,2,6],[2,7,2,9],[4,1,4,9],[11,0,12,2],[11,3,12,3]]}
[{"$f":"ListesDéroulantes!H2&IF(ISNUMBER(RIGHT(CELL(\"filename\",$A$1),2)*1),RIGHT(CELL(\"filename\",$A$1),2)*1,IF(ISNUMBER(RIGHT(CELL(\"filename\",$A$1),1)*1),RIGHT(CELL(\"filename\",$A$1),1)*1,\"N/A\"))&ListesDéroulantes!I2","v":"Fiche partenaire n°2 : Identification et budget"},null,null,null,null,{"$f":"ListesDéroulantes!M2","v":"Réservé à l'ANR"},null,null,null,null,{"$f":"IF(COUNTIF(K6:K1508,\"Err*\")>0,COUNTIF(K6:K1508,\"Err*\")&\" \"&ListesDéroulantes!I184&IF(COUNTIF(K6:K1508,\"Err*\")>1,\"s\",\"\"),\"\")","v":"2 erreurs"}]
[null,null,null,null,null,{"$f":"ListesDéroulantes!M3","v":"N° de dossier"},null,{"$f":"Notice!H5","v":"ANR-17-IHU2-00"}]
[null,null,null,null,null,{"$f":"ListesDéroulantes!M4","v":"Acronyme"},null,{"$f":"IF(Volet_general!D10<>\"\",Volet_general!D10,\"\")","v":""}]
[]
[null,{"$f":"ListesDéroulantes!S6","v":"Identification du partenaire fondateur (PF)"}]
[]
[{"$f":"ListesDéroulantes!S8","v":"Nom complet du PF"},null,null,null,null,null,null,null,null,null,{"$f":"IF(OR(D7=\"\",D10=\"\",D12=\"\",G11=\"\",G12=\"\"),ListesDéroulantes!I171,\"\")","v":"Erreur : les données concernant le PF ne sont pas toutes renseignées."}]
[]
[]
[{"$f":"ListesDéroulantes!S11","v":"Sigle du PF"},null,null,null,null,null,{"$f":"ListesDéroulantes!K16","v":"Saisir un n°SIRET de 14digits"}]
[null,null,null,null,null,{"$f":"ListesDéroulantes!H16","v":"N° de SIRET"}]
[{"$f":"ListesDéroulantes!S13","v":"Forme juridique du PF"},null,null,null,null,{"$f":"ListesDéroulantes!H18","v":"Assujetti à la TVA "}]
[]
[]
[null,{"$f":"ListesDéroulantes!S20","v":"Personne habilitée à représenter juridiquement le partenaire fondateur (signataire de la lettre d'engagement)"}]
[]
[{"$f":"ListesDéroulantes!H22","v":"Genre"},null,null,null,null,null,null,null,null,null,{"$f":"IF(OR(D17=\"\",D18=\"\",D19=\"\",D20=\"\"),ListesDéroulantes!I172,\"\")","v":"Erreur : les données concernant la personne habilitée à engager le PF ne sont pas toutes renseignées."}]
[{"$f":"ListesDéroulantes!H23","v":"Prénom"}]
[{"$f":"ListesDéroulantes!H24","v":"Nom"}]
[{"$f":"ListesDéroulantes!H25","v":"Qualité"}]
[]
[null,{"$f":"ListesDéroulantes!S27","v":"Apports détaillés du projet (montant HT en €, incluant la TVA non récupérable le cas échéant)"}]
[null,{"$f":"ListesDéroulantes!I28","v":"Equipements ou amortissement d'équipements de R&D (supérieur à 4 000 € HT)"}]
[]
[null,null,null,null,{"$f":"ListesDéroulantes!L85","v":"Descriptif"},null,{"$f":"ListesDéroulantes!N30","v":"Coût d'achat\n(en €)"},{"$f":"ListesDéroulantes!O30","v":"Pourcentage\nd'utilisation\n(en%)"},{"$f":"ListesDéroulantes!P30","v":"Coût total\n(en €)"}]
[]
[]
[null,{"$f":"B27+1","v":1},null,null,null,null,null,null,{"$f":"IF(AND(G28<>0,H28<>0),G28*H28,\"\")","v":""}]
[null,{"$f":"B28+1","v":2},null,null,null,null,null,null,{"$f":"IF(AND(G29<>0,H29<>0),G29*H29,\"\")","v":""}]
[null,{"$f":"B29+1","v":3},null,null,null,null,null,null,{"$f":"IF(AND(G30<>0,H30<>0),G30*H30,\"\")","v":""}]
[null,null,null,null,"Total",null,null,null,{"$f":"IF(SUM(I28:I30)<>0,SUM(I28:I30),\"- €\")","v":"- €"}]
[null,{"$f":"ListesDéroulantes!S38","v":"Personnels"}]
[]
[null,null,null,{"$f":"ListesDéroulantes!K40","v":"Catégorie de personnel"},{"$f":"ListesDéroulantes!L40","v":"Descriptif"},null,{"$f":"ListesDéroulantes!N40","v":"Coût mensuel\n(en €)"},{"$f":"ListesDéroulantes!O40","v":"Personne. Mois"},{"$f":"ListesDéroulantes!P40","v":"Coût total\n(en €)"}]
[]
[]
[null,{"$f":"B36+1","v":1},null,null,null,null,null,null,{"$f":"IF(G37*H37<>0,G37*H37,\"\")","v":""}]
[null,{"$f":"B37+1","v":2},null,null,null,null,null,null,{"$f":"IF(G38*H38<>0,G38*H38,\"\")","v":""}]
[null,{"$f":"B38+1","v":3},null,null,null,null,null,null,{"$f":"IF(G39*H39<>0,G39*H39,\"\")","v":""}]
[null,"Total",null,null,null,null,null,{"$f":"IF(SUM(H37:H39)<>0,SUM(H37:H39),\"-\")","v":"-"},{"$f":"IF(SUM(I37:I39)<>0,SUM(I37:I39),\"- €\")","v":"- €"}]
[null,{"$f":"ListesDéroulantes!I65","v":"Prestations de service externes"}]
[]
[null,null,null,null,{"$f":"ListesDéroulantes!L67","v":"Descriptif"},null,null,null,{"$f":"ListesDéroulantes!P67","v":"Coût total\n(en €)"}]
[]
[]
[null,{"$f":"B45+1","v":1}]
[null,{"$f":"B46+1","v":2}]
[null,{"$f":"B47+1","v":3}]
[null,null,null,null,"Total",null,null,null,{"$f":"IF(SUM(I46:I48)<>0,SUM(I46:I48),\"- €\")","v":"- €"}]
[null,{"$f":"ListesDéroulantes!I74","v":"Missions"}]
[]
[null,null,null,null,{"$f":"ListesDéroulantes!L76","v":"Descriptif"},null,null,null,{"$f":"ListesDéroulantes!P76","v":"Coût total\n(en €)"}]
[]
[]
[null,{"$f":"B54+1","v":1}]
[null,{"$f":"B55+1","v":2}]
[null,{"$f":"B56+1","v":3}]
[null,null,null,null,"Total",null,null,null,{"$f":"IF(SUM(I55:I57)<>0,SUM(I55:I57),\"- €\")","v":"- €"}]
[null,{"$f":"ListesDéroulantes!I83","v":"Autres dépenses externes (consommables, petits matériels …)"}]
[]
[null,null,null,null,{"$f":"ListesDéroulantes!L85","v":"Descriptif"},null,null,null,{"$f":"ListesDéroulantes!P85","v":"Coût total\n(en €)"}]
[]
[]
[null,{"$f":"B63+1","v":1}]
[null,{"$f":"B64+1","v":2}]
[null,{"$f":"B65+1","v":3}]
[null,null,null,null,"Total",null,null,null,{"$f":"IF(SUM(I64:I66)<>0,SUM(I64:I66),\"- €\")","v":"- €"}]
[null,{"$f":"ListesDéroulantes!I92","v":"Autres dépenses justifiées par une procédure de facturation interne"}]
[]
[null,null,null,null,{"$f":"ListesDéroulantes!L94","v":"Descriptif"},null,{"$f":"ListesDéroulantes!N94","v":"Coût unitaire (en €)"},{"$f":"ListesDéroulantes!O94","v":"Nombre"},{"$f":"ListesDéroulantes!P94","v":"Coût total\n(en €)"}]
[]
[]
[null,{"$f":"B72+1","v":1},null,null,null,null,null,null,{"$f":"IF(G73*H73<>0,G73*H73,\"\")","v":""}]
[null,{"$f":"B73+1","v":2},null,null,null,null,null,null,{"$f":"IF(G74*H74<>0,G74*H74,\"\")","v":""}]
[null,{"$f":"B74+1","v":3},null,null,null,null,null,null,{"$f":"IF(G75*H75<>0,G75*H75,\"\")","v":""}]
[null,null,null,null,"Total",null,null,null,{"$f":"IF(SUM(I73:I75)<>0,SUM(I73:I75),\"- €\")","v":"- €"}]
[]
[]
[null,null,null,null,{"$f":"ListesDéroulantes!L113","v":"Montant total de l'apport du partenaire fondateur (en €)"},null,{"$f":"IF(SUM(I76,I67,I58,I49,I40,I31)<>0,SUM(I76,I67,I58,I49,I40,I31),\"- €\")","v":"- €"}]
[]
[]
[null,{"$f":"ListesDéroulantes!I149","v":"Commentaires (le cas échéant)"}]
[]
[]
[]
[]
[]
[]
[null,{"$f":"ListesDéroulantes!I156","v":"Les informations personnelles transmises dans ces documents sont obligatoires et seront conservées en fichiers par l'ANR pour assurer la conduite opérationnelle de l'évaluation et l'administration des dossiers.\nConformément à la loi n° 78-17 du 6 janvier 1978 modifiée, relative à l'Informatique, aux Fichiers et aux Libertés, les personnes concernées disposent d'un droit d'accès et de rectification des données personnelles les concernant. Les personnes concernées peuvent exercer ce droit en s'adressant à l'ANR (voir coordonnées dans le texte de l’appel à projets)."}]

{"sheet":"Part3","index":6,"n_rows":89,"n_cols":11,"rows_kept":89,"cut":false,"hidden":false,"merged":[[6,0,7,2],[6,3,7,9],[6,10,7,10],[9,0,9,2],[9,6,9,7],[10,0,10,2],[10,6,10,7],[0,0,2,4],[0,5,0,9],[0,10,4,10],[1,5,1,6],[1,7,1,9],[2,5,2,6],[2,7,2,9],[4,1,4,9],[16,10,19,10],[17,0,17,2],[17,3,17,9],[18,0,18,2],[18,3,18,9],[19,0,19,2],[19,3,19,9],[11,0,12,2],[11,3,12,3],[11,6,11,7],[13,0,13,2],[14,1,14,9],[16,0,16,2],[24,10,26,10],[27,1,27,3],[27,4,27,5],[28,1,28,3],[28,4,28,5],[29,1,29,3],[29,4,29,5],[21,1,21,9],[22,1,23,9],[24,1,26,1],[24,2,26,2],[24,3,26,3],[24,4,26,5],[24,6,26,6],[24,7,26,7],[24,8,26,8],[24,9,26,9],[36,1,36,2],[36,4,36,5],[37,1,37,2],[37,4,37,5],[38,1,38,2],[38,4,38,5],[31,1,32,9],[33,1,35,1],[33,2,35,2],[33,3,35,3],[33,4,35,5],[33,6,35,6],[33,7,35,7],[33,8,35,8],[33,9,35,9],[45,1,45,3],[45,4,45,5],[46,1,46,3],[46,4,46,5],[47,1,47,3],[47,4,47,5],[39,1,39,6],[40,1,41,9],[42,1,44,1],[42,2,44,2],[42,3,44,3],[42,4,44,5],[42,6,44,6],[42,7,44,7],[42,8,44,8],[42,9,44,9],[54,1,54,3],[54,4,54,5],[55,1,55,3],[55,4,55,5],[56,1,56,3],[56,4,56,5],[49,1,50,9],[51,1,53,1],[51,2,53,2],[51,3,53,3],[51,4,53,5],[51,6,53,6],[51,7,53,7],[51,8,53,8],[51,9,53,9],[63,1,63,3],[63,4,63,5],[64,1,64,3],[64,4,64,5],[65,1,65,3],[65,4,65,5],[58,1,59,9],[60,1,62,1],[60,2,62,2],[60,3,62,3],[60,4,62,5],[60,6,62,6],[60,7,62,7],[60,8,62,8],[60,9,62,9],[67,1,68,9],[69,1,71,1],[69,2,71,2],[69,3,71,3],[69,4,71,5],[69,6,71,6],[69,7,71,7],[69,8,71,8],[69,9,71,9],[88,1,90,9],[76,1,77,9],[78,4,79,5],[78,6,79,7],[78,8,79,9],[81,1,81,9],[83,1,86,9],[72,1,72,3],[72,4,72,5],[73,1,73,3],[73,4,73,5],[74,1,74,3],[74,4,74,5]]}
[{"$f":"ListesDéroulantes!H2&IF(ISNUMBER(RIGHT(CELL(\"filename\",$A$1),2)*1),RIGHT(CELL(\"filename\",$A$1),2)*1,IF(ISNUMBER(RIGHT(CELL(\"filename\",$A$1),1)*1),RIGHT(CELL(\"filename\",$A$1),1)*1,\"N/A\"))&ListesDéroulantes!I2","v":"Fiche partenaire n°3 : Identification et budget"},null,null,null,null,{"$f":"ListesDéroulantes!M2","v":"Réservé à l'ANR"},null,null,null,null,{"$f":"IF(COUNTIF(K6:K1508,\"Err*\")>0,COUNTIF(K6:K1508,\"Err*\")&\" \"&ListesDéroulantes!I184&IF(COUNTIF(K6:K1508,\"Err*\")>1,\"s\",\"\"),\"\")","v":"2 erreurs"}]
[null,null,null,null,null,{"$f":"ListesDéroulantes!M3","v":"N° de dossier"},null,{"$f":"Notice!H5","v":"ANR-17-IHU2-00"}]
[null,null,null,null,null,{"$f":"ListesDéroulantes!M4","v":"Acronyme"},null,{"$f":"IF(Volet_general!D10<>\"\",Volet_general!D10,\"\")","v":""}]
[]
[null,{"$f":"ListesDéroulantes!S6","v":"Identification du partenaire fondateur (PF)"}]
[]
[{"$f":"ListesDéroulantes!S8","v":"Nom complet du PF"},null,null,null,null,null,null,null,null,null,{"$f":"IF(OR(D7=\"\",D10=\"\",D12=\"\",G11=\"\",G12=\"\"),ListesDéroulantes!I171,\"\")","v":"Erreur : les données concernant le PF ne sont pas toutes renseignées."}]
[]
[]
[{"$f":"ListesDéroulantes!S11","v":"Sigle du PF"},null,null,null,null,null,{"$f":"ListesDéroulantes!K16","v":"Saisir un n°SIRET de 14digits"}]
[null,null,null,null,null,{"$f":"ListesDéroulantes!H16","v":"N° de SIRET"}]
[{"$f":"ListesDéroulantes!S13","v":"Forme juridique du PF"},null,null,null,null,{"$f":"ListesDéroulantes!H18","v":"Assujetti à la TVA "}]
[]
[]
[null,{"$f":"ListesDéroulantes!S20","v":"Personne habilitée à représenter juridiquement le partenaire fondateur (signataire de la lettre d'engagement)"}]
[]
[{"$f":"ListesDéroulantes!H22","v":"Genre"},null,null,null,null,null,null,null,null,null,{"$f":"IF(OR(D17=\"\",D18=\"\",D19=\"\",D20=\"\"),ListesDéroulantes!I172,\"\")","v":"Erreur : les données concernant la personne habilitée à engager le PF ne sont pas toutes renseignées."}]
[{"$f":"ListesDéroulantes!H23","v":"Prénom"}]
[{"$f":"ListesDéroulantes!H24","v":"Nom"}]
[{"$f":"ListesDéroulantes!H25","v":"Qualité"}]
[]
[null,{"$f":"ListesDéroulantes!S27","v":"Apports détaillés du projet (montant HT en €, incluant la TVA non récupérable le cas échéant)"}]
[null,{"$f":"ListesDéroulantes!I28","v":"Equipements ou amortissement d'équipements de R&D (supérieur à 4 000 € HT)"}]
[]
[null,null,null,null,{"$f":"ListesDéroulantes!L85","v":"Descriptif"},null,{"$f":"ListesDéroulantes!N30","v":"Coût d'achat\n(en €)"},{"$f":"ListesDéroulantes!O30","v":"Pourcentage\nd'utilisation\n(en%)"},{"$f":"ListesDéroulantes!P30","v":"Coût total\n(en €)"}]
[]
[]
[null,{"$f":"B27+1","v":1},null,null,null,null,null,null,{"$f":"IF(AND(G28<>0,H28<>0),G28*H28,\"\")","v":""}]
[null,{"$f":"B28+1","v":2},null,null,null,null,null,null,{"$f":"IF(AND(G29<>0,H29<>0),G29*H29,\"\")","v":""}]
[null,{"$f":"B29+1","v":3},null,null,null,null,null,null,{"$f":"IF(AND(G30<>0,H30<>0),G30*H30,\"\")","v":""}]
[null,null,null,null,"Total",null,null,null,{"$f":"IF(SUM(I28:I30)<>0,SUM(I28:I30),\"- €\")","v":"- €"}]
[null,{"$f":"ListesDéroulantes!S38","v":"Personnels"}]
[]
[null,null,null,{"$f":"ListesDéroulantes!K40","v":"Catégorie de personnel"},{"$f":"ListesDéroulantes!L40","v":"Descriptif"},null,{"$f":"ListesDéroulantes!N40","v":"Coût mensuel\n(en €)"},{"$f":"ListesDéroulantes!O40","v":"Personne. Mois"},{"$f":"ListesDéroulantes!P40","v":"Coût total\n(en €)"}]
[]
[]
[null,{"$f":"B36+1","v":1},null,null,null,null,null,null,{"$f":"IF(G37*H37<>0,G37*H37,\"\")","v":""}]
[null,{"$f":"B37+1","v":2},null,null,null,null,null,null,{"$f":"IF(G38*H38<>0,G38*H38,\"\")","v":""}]
[null,{"$f":"B38+1","v":3},null,null,null,null,null,null,{"$f":"IF(G39*H39<>0,G39*H39,\"\")","v":""}]
[null,"Total",null,null,null,null,null,{"$f":"IF(SUM(H37:H39)<>0,SUM(H37:H39),\"-\")","v":"-"},{"$f":"IF(SUM(I37:I39)<>0,SUM(I37:I39),\"- €\")","v":"- €"}]
[null,{"$f":"ListesDéroulantes!I65","v":"Prestations de service externes"}]
[]
[null,null,null,null,{"$f":"ListesDéroulantes!L67","v":"Descriptif"},null,null,null,{"$f":"ListesDéroulantes!P67","v":"Coût total\n(en €)"}]
[]
[]
[null,{"$f":"B45+1","v":1}]
[null,{"$f":"B46+1","v":2}]
[null,{"$f":"B47+1","v":3}]
[null,null,null,null,"Total",null,null,null,{"$f":"IF(SUM(I46:I48)<>0,SUM(I46:I48),\"- €\")","v":"- €"}]
[null,{"$f":"ListesDéroulantes!I74","v":"Missions"}]
[]
[null,null,null,null,{"$f":"ListesDéroulantes!L76","v":"Descriptif"},null,null,null,{"$f":"ListesDéroulantes!P76","v":"Coût total\n(en €)"}]
[]
[]
[null,{"$f":"B54+1","v":1}]
[null,{"$f":"B55+1","v":2}]
[null,{"$f":"B56+1","v":3}]
[null,null,null,null,"Total",null,null,null,{"$f":"IF(SUM(I55:I57)<>0,SUM(I55:I57),\"- €\")","v":"- €"}]
[null,{"$f":"ListesDéroulantes!I83","v":"Autres dépenses externes (consommables, petits matériels …)"}]
[]
[null,null,null,null,{"$f":"ListesDéroulantes!L85","v":"Descriptif"},null,null,null,{"$f":"ListesDéroulantes!P85","v":"Coût total\n(en €)"}]
[]
[]
[null,{"$f":"B63+1","v":1}]
[null,{"$f":"B64+1","v":2}]
[null,{"$f":"B65+1","v":3}]
[null,null,null,null,"Total",null,null,null,{"$f":"IF(SUM(I64:I66)<>0,SUM(I64:I66),\"- €\")","v":"- €"}]
[null,{"$f":"ListesDéroulantes!I92","v":"Autres dépenses justifiées par une procédure de facturation interne"}]
[]
[null,null,null,null,{"$f":"ListesDéroulantes!L94","v":"Descriptif"},null,{"$f":"ListesDéroulantes!N94","v":"Coût unitaire (en €)"},{"$f":"ListesDéroulantes!O94","v":"Nombre"},{"$f":"ListesDéroulantes!P94","v":"Coût total\n(en €)"}]
[]
[]
[null,{"$f":"B72+1","v":1},null,null,null,null,null,null,{"$f":"IF(G73*H73<>0,G73*H73,\"\")","v":""}]
[null,{"$f":"B73+1","v":2},null,null,null,null,null,null,{"$f":"IF(G74*H74<>0,G74*H74,\"\")","v":""}]
[null,{"$f":"B74+1","v":3},null,null,null,null,null,null,{"$f":"IF(G75*H75<>0,G75*H75,\"\")","v":""}]
[null,null,null,null,"Total",null,null,null,{"$f":"IF(SUM(I73:I75)<>0,SUM(I73:I75),\"- €\")","v":"- €"}]
[]
[]
[null,null,null,null,{"$f":"ListesDéroulantes!L113","v":"Montant total de l'apport du partenaire fondateur (en €)"},null,{"$f":"IF(SUM(I76,I67,I58,I49,I40,I31)<>0,SUM(I76,I67,I58,I49,I40,I31),\"- €\")","v":"- €"}]
[]
[]
[null,{"$f":"ListesDéroulantes!I149","v":"Commentaires (le cas échéant)"}]
[]
[]
[]
[]
[]
[]
[null,{"$f":"ListesDéroulantes!I156","v":"Les informations personnelles transmises dans ces documents sont obligatoires et seront conservées en fichiers par l'ANR pour assurer la conduite opérationnelle de l'évaluation et l'administration des dossiers.\nConformément à la loi n° 78-17 du 6 janvier 1978 modifiée, relative à l'Informatique, aux Fichiers et aux Libertés, les personnes concernées disposent d'un droit d'accès et de rectification des données personnelles les concernant. Les personnes concernées peuvent exercer ce droit en s'adressant à l'ANR (voir coordonnées dans le texte de l’appel à projets)."}]

{"sheet":"Part4","index":7,"n_rows":89,"n_cols":11,"rows_kept":89,"cut":false,"hidden":false,"merged":[[6,0,7,2],[6,3,7,9],[6,10,7,10],[9,0,9,2],[9,6,9,7],[10,0,10,2],[10,6,10,7],[0,0,2,4],[0,5,0,9],[0,10,4,10],[1,5,1,6],[1,7,1,9],[2,5,2,6],[2,7,2,9],[4,1,4,9],[16,10,19,10],[17,0,17,2],[17,3,17,9],[18,0,18,2],[18,3,18,9],[19,0,19,2],[19,3,19,9],[11,0,12,2],[11,3,12,3],[11,6,11,7],[13,0,13,2],[14,1,14,9],[16,0,16,2],[24,10,26,10],[27,1,27,3],[27,4,27,5],[28,1,28,3],[28,4,28,5],[29,1,29,3],[29,4,29,5],[21,1,21,9],[22,1,23,9],[24,1,26,1],[24,2,26,2],[24,3,26,3],[24,4,26,5],[24,6,26,6],[24,7,26,7],[24,8,26,8],[24,9,26,9],[36,1,36,2],[36,4,36,5],[37,1,37,2],[37,4,37,5],[38,1,38,2],[38,4,38,5],[31,1,32,9],[33,1,35,1],[33,2,35,2],[33,3,35,3],[33,4,35,5],[33,6,35,6],[33,7,35,7],[33,8,35,8],[33,9,35,9],[45,1,45,3],[45,4,45,5],[46,1,46,3],[46,4,46,5],[47,1,47,3],[47,4,47,5],[39,1,39,6],[40,1,41,9],[42,1,44,1],[42,2,44,2],[42,3,44,3],[42,4,44,5],[42,6,44,6],[42,7,44,7],[42,8,44,8],[42,9,44,9],[54,1,54,3],[54,4,54,5],[55,1,55,3],[55,4,55,5],[56,1,56,3],[56,4,56,5],[49,1,50,9],[51,1,53,1],[51,2,53,2],[51,3,53,3],[51,4,53,5],[51,6,53,6],[51,7,53,7],[51,8,53,8],[51,9,53,9],[63,1,63,3],[63,4,63,5],[64,1,64,3],[64,4,64,5],[65,1,65,3],[65,4,65,5],[58,1,59,9],[60,1,62,1],[60,2,62,2],[60,3,62,3],[60,4,62,5],[60,6,62,6],[60,7,62,7],[60,8,62,8],[60,9,62,9],[67,1,68,9],[69,1,71,1],[69,2,71,2],[69,3,71,3],[69,4,71,5],[69,6,71,6],[69,7,71,7],[69,8,71,8],[69,9,71,9],[88,1,90,9],[76,1,77,9],[78,4,79,5],[78,6,79,7],[78,8,79,9],[81,1,81,9],[83,1,86,9],[72,1,72,3],[72,4,72,5],[73,1,73,3],[73,4,73,5],[74,1,74,3],[74,4,74,5]]}
[{"$f":"ListesDéroulantes!H2&IF(ISNUMBER(RIGHT(CELL(\"filename\",$A$1),2)*1),RIGHT(CELL(\"filename\",$A$1),2)*1,IF(ISNUMBER(RIGHT(CELL(\"filename\",$A$1),1)*1),RIGHT(CELL(\"filename\",$A$1),1)*1,\"N/A\"))&ListesDéroulantes!I2","v":"Fiche partenaire n°4 : Identification et budget"},null,null,null,null,{"$f":"ListesDéroulantes!M2","v":"Réservé à l'ANR"},null,null,null,null,{"$f":"IF(COUNTIF(K6:K1508,\"Err*\")>0,COUNTIF(K6:K1508,\"Err*\")&\" \"&ListesDéroulantes!I184&IF(COUNTIF(K6:K1508,\"Err*\")>1,\"s\",\"\"),\"\")","v":"2 erreurs"}]
[null,null,null,null,null,{"$f":"ListesDéroulantes!M3","v":"N° de dossier"},null,{"$f":"Notice!H5","v":"ANR-17-IHU2-00"}]
[null,null,null,null,null,{"$f":"ListesDéroulantes!M4","v":"Acronyme"},null,{"$f":"IF(Volet_general!D10<>\"\",Volet_general!D10,\"\")","v":""}]
[]
[null,{"$f":"ListesDéroulantes!S6","v":"Identification du partenaire fondateur (PF)"}]
[]
[{"$f":"ListesDéroulantes!S8","v":"Nom complet du PF"},null,null,null,null,null,null,null,null,null,{"$f":"IF(OR(D7=\"\",D10=\"\",D12=\"\",G11=\"\",G12=\"\"),ListesDéroulantes!I171,\"\")","v":"Erreur : les données concernant le PF ne sont pas toutes renseignées."}]
[]
[]
[{"$f":"ListesDéroulantes!S11","v":"Sigle du PF"},null,null,null,null,null,{"$f":"ListesDéroulantes!K16","v":"Saisir un n°SIRET de 14digits"}]
[null,null,null,null,null,{"$f":"ListesDéroulantes!H16","v":"N° de SIRET"}]
[{"$f":"ListesDéroulantes!S13","v":"Forme juridique du PF"},null,null,null,null,{"$f":"ListesDéroulantes!H18","v":"Assujetti à la TVA "}]
[]
[]
[null,{"$f":"ListesDéroulantes!S20","v":"Personne habilitée à représenter juridiquement le partenaire fondateur (signataire de la lettre d'engagement)"}]
[]
[{"$f":"ListesDéroulantes!H22","v":"Genre"},null,null,null,null,null,null,null,null,null,{"$f":"IF(OR(D17=\"\",D18=\"\",D19=\"\",D20=\"\"),ListesDéroulantes!I172,\"\")","v":"Erreur : les données concernant la personne habilitée à engager le PF ne sont pas toutes renseignées."}]
[{"$f":"ListesDéroulantes!H23","v":"Prénom"}]
[{"$f":"ListesDéroulantes!H24","v":"Nom"}]
[{"$f":"ListesDéroulantes!H25","v":"Qualité"}]
[]
[null,{"$f":"ListesDéroulantes!S27","v":"Apports détaillés du projet (montant HT en €, incluant la TVA non récupérable le cas échéant)"}]
[null,{"$f":"ListesDéroulantes!I28","v":"Equipements ou amortissement d'équipements de R&D (supérieur à 4 000 € HT)"}]
[]
[null,null,null,null,{"$f":"ListesDéroulantes!L85","v":"Descriptif"},null,{"$f":"ListesDéroulantes!N30","v":"Coût d'achat\n(en €)"},{"$f":"ListesDéroulantes!O30","v":"Pourcentage\nd'utilisation\n(en%)"},{"$f":"ListesDéroulantes!P30","v":"Coût total\n(en €)"}]
[]
[]
[null,{"$f":"B27+1","v":1},null,null,null,null,null,null,{"$f":"IF(AND(G28<>0,H28<>0),G28*H28,\"\")","v":""}]
[null,{"$f":"B28+1","v":2},null,null,null,null,null,null,{"$f":"IF(AND(G29<>0,H29<>0),G29*H29,\"\")","v":""}]
[null,{"$f":"B29+1","v":3},null,null,null,null,null,null,{"$f":"IF(AND(G30<>0,H30<>0),G30*H30,\"\")","v":""}]
[null,null,null,null,"Total",null,null,null,{"$f":"IF(SUM(I28:I30)<>0,SUM(I28:I30),\"- €\")","v":"- €"}]
[null,{"$f":"ListesDéroulantes!S38","v":"Personnels"}]
[]
[null,null,null,{"$f":"ListesDéroulantes!K40","v":"Catégorie de personnel"},{"$f":"ListesDéroulantes!L40","v":"Descriptif"},null,{"$f":"ListesDéroulantes!N40","v":"Coût mensuel\n(en €)"},{"$f":"ListesDéroulantes!O40","v":"Personne. Mois"},{"$f":"ListesDéroulantes!P40","v":"Coût total\n(en €)"}]
[]
[]
[null,{"$f":"B36+1","v":1},null,null,null,null,null,null,{"$f":"IF(G37*H37<>0,G37*H37,\"\")","v":""}]
[null,{"$f":"B37+1","v":2},null,null,null,null,null,null,{"$f":"IF(G38*H38<>0,G38*H38,\"\")","v":""}]
[null,{"$f":"B38+1","v":3},null,null,null,null,null,null,{"$f":"IF(G39*H39<>0,G39*H39,\"\")","v":""}]
[null,"Total",null,null,null,null,null,{"$f":"IF(SUM(H37:H39)<>0,SUM(H37:H39),\"-\")","v":"-"},{"$f":"IF(SUM(I37:I39)<>0,SUM(I37:I39),\"- €\")","v":"- €"}]
[null,{"$f":"ListesDéroulantes!I65","v":"Prestations de service externes"}]
[]
[null,null,null,null,{"$f":"ListesDéroulantes!L67","v":"Descriptif"},null,null,null,{"$f":"ListesDéroulantes!P67","v":"Coût total\n(en €)"}]
[]
[]
[null,{"$f":"B45+1","v":1}]
[null,{"$f":"B46+1","v":2}]
[null,{"$f":"B47+1","v":3}]
[null,null,null,null,"Total",null,null,null,{"$f":"IF(SUM(I46:I48)<>0,SUM(I46:I48),\"- €\")","v":"- €"}]
[null,{"$f":"ListesDéroulantes!I74","v":"Missions"}]
[]
[null,null,null,null,{"$f":"ListesDéroulantes!L76","v":"Descriptif"},null,null,null,{"$f":"ListesDéroulantes!P76","v":"Coût total\n(en €)"}]
[]
[]
[null,{"$f":"B54+1","v":1}]
[null,{"$f":"B55+1","v":2}]
[null,{"$f":"B56+1","v":3}]
[null,null,null,null,"Total",null,null,null,{"$f":"IF(SUM(I55:I57)<>0,SUM(I55:I57),\"- €\")","v":"- €"}]
[null,{"$f":"ListesDéroulantes!I83","v":"Autres dépenses externes (consommables, petits matériels …)"}]
[]
[null,null,null,null,{"$f":"ListesDéroulantes!L85","v":"Descriptif"},null,null,null,{"$f":"ListesDéroulantes!P85","v":"Coût total\n(en €)"}]
[]
[]
[null,{"$f":"B63+1","v":1}]
[null,{"$f":"B64+1","v":2}]
[null,{"$f":"B65+1","v":3}]
[null,null,null,null,"Total",null,null,null,{"$f":"IF(SUM(I64:I66)<>0,SUM(I64:I66),\"- €\")","v":"- €"}]
[null,{"$f":"ListesDéroulantes!I92","v":"Autres dépenses justifiées par une procédure de facturation interne"}]
[]
[null,null,null,null,{"$f":"ListesDéroulantes!L94","v":"Descriptif"},null,{"$f":"ListesDéroulantes!N94","v":"Coût unitaire (en €)"},{"$f":"ListesDéroulantes!O94","v":"Nombre"},{"$f":"ListesDéroulantes!P94","v":"Coût total\n(en €)"}]
[]
[]
[null,{"$f":"B72+1","v":1},null,null,null,null,null,null,{"$f":"IF(G73*H73<>0,G73*H73,\"\")","v":""}]
[null,{"$f":"B73+1","v":2},null,null,null,null,null,null,{"$f":"IF(G74*H74<>0,G74*H74,\"\")","v":""}]
[null,{"$f":"B74+1","v":3},null,null,null,null,null,null,{"$f":"IF(G75*H75<>0,G75*H75,\"\")","v":""}]
[null,null,null,null,"Total",null,null,null,{"$f":"IF(SUM(I73:I75)<>0,SUM(I73:I75),\"- €\")","v":"- €"}]
[]
[]
[null,null,null,null,{"$f":"ListesDéroulantes!L113","v":"Montant total de l'apport du partenaire fondateur (en €)"},null,{"$f":"IF(SUM(I76,I67,I58,I49,I40,I31)<>0,SUM(I76,I67,I58,I49,I40,I31),\"- €\")","v":"- €"}]
[]
[]
[null,{"$f":"ListesDéroulantes!I149","v":"Commentaires (le cas échéant)"}]
[]
[]
[]
[]
[]
[]
[null,{"$f":"ListesDéroulantes!I156","v":"Les informations personnelles transmises dans ces documents sont obligatoires et seront conservées en fichiers par l'ANR pour assurer la conduite opérationnelle de l'évaluation et l'administration des dossiers.\nConformément à la loi n° 78-17 du 6 janvier 1978 modifiée, relative à l'Informatique, aux Fichiers et aux Libertés, les personnes concernées disposent d'un droit d'accès et de rectification des données personnelles les concernant. Les personnes concernées peuvent exercer ce droit en s'adressant à l'ANR (voir coordonnées dans le texte de l’appel à projets)."}]

{"sheet":"Part5","index":8,"n_rows":89,"n_cols":11,"rows_kept":89,"cut":false,"hidden":false,"merged":[[6,0,7,2],[6,3,7,9],[6,10,7,10],[9,0,9,2],[9,6,9,7],[10,0,10,2],[10,6,10,7],[0,0,2,4],[0,5,0,9],[0,10,4,10],[1,5,1,6],[1,7,1,9],[2,5,2,6],[2,7,2,9],[4,1,4,9],[16,10,19,10],[17,0,17,2],[17,3,17,9],[18,0,18,2],[18,3,18,9],[19,0,19,2],[19,3,19,9],[11,0,12,2],[11,3,12,3],[11,6,11,7],[13,0,13,2],[14,1,14,9],[16,0,16,2],[24,10,26,10],[27,1,27,3],[27,4,27,5],[28,1,28,3],[28,4,28,5],[29,1,29,3],[29,4,29,5],[21,1,21,9],[22,1,23,9],[24,1,26,1],[24,2,26,2],[24,3,26,3],[24,4,26,5],[24,6,26,6],[24,7,26,7],[24,8,26,8],[24,9,26,9],[36,1,36,2],[36,4,36,5],[37,1,37,2],[37,4,37,5],[38,1,38,2],[38,4,38,5],[31,1,32,9],[33,1,35,1],[33,2,35,2],[33,3,35,3],[33,4,35,5],[33,6,35,6],[33,7,35,7],[33,8,35,8],[33,9,35,9],[45,1,45,3],[45,4,45,5],[46,1,46,3],[46,4,46,5],[47,1,47,3],[47,4,47,5],[39,1,39,6],[40,1,41,9],[42,1,44,1],[42,2,44,2],[42,3,44,3],[42,4,44,5],[42,6,44,6],[42,7,44,7],[42,8,44,8],[42,9,44,9],[54,1,54,3],[54,4,54,5],[55,1,55,3],[55,4,55,5],[56,1,56,3],[56,4,56,5],[49,1,50,9],[51,1,53,1],[51,2,53,2],[51,3,53,3],[51,4,53,5],[51,6,53,6],[51,7,53,7],[51,8,53,8],[51,9,53,9],[63,1,63,3],[63,4,63,5],[64,1,64,3],[64,4,64,5],[65,1,65,3],[65,4,65,5],[58,1,59,9],[60,1,62,1],[60,2,62,2],[60,3,62,3],[60,4,62,5],[60,6,62,6],[60,7,62,7],[60,8,62,8],[60,9,62,9],[67,1,68,9],[69,1,71,1],[69,2,71,2],[69,3,71,3],[69,4,71,5],[69,6,71,6],[69,7,71,7],[69,8,71,8],[69,9,71,9],[88,1,90,9],[76,1,77,9],[78,4,79,5],[78,6,79,7],[78,8,79,9],[81,1,81,9],[83,1,86,9],[72,1,72,3],[72,4,72,5],[73,1,73,3],[73,4,73,5],[74,1,74,3],[74,4,74,5]]}
[{"$f":"ListesDéroulantes!H2&IF(ISNUMBER(RIGHT(CELL(\"filename\",$A$1),2)*1),RIGHT(CELL(\"filename\",$A$1),2)*1,IF(ISNUMBER(RIGHT(CELL(\"filename\",$A$1),1)*1),RIGHT(CELL(\"filename\",$A$1),1)*1,\"N/A\"))&ListesDéroulantes!I2","v":"Fiche partenaire n°5 : Identification et budget"},null,null,null,null,{"$f":"ListesDéroulantes!M2","v":"Réservé à l'ANR"},null,null,null,null,{"$f":"IF(COUNTIF(K6:K1508,\"Err*\")>0,COUNTIF(K6:K1508,\"Err*\")&\" \"&ListesDéroulantes!I184&IF(COUNTIF(K6:K1508,\"Err*\")>1,\"s\",\"\"),\"\")","v":"2 erreurs"}]
[null,null,null,null,null,{"$f":"ListesDéroulantes!M3","v":"N° de dossier"},null,{"$f":"Notice!H5","v":"ANR-17-IHU2-00"}]
[null,null,null,null,null,{"$f":"ListesDéroulantes!M4","v":"Acronyme"},null,{"$f":"IF(Volet_general!D10<>\"\",Volet_general!D10,\"\")","v":""}]
[]
[null,{"$f":"ListesDéroulantes!S6","v":"Identification du partenaire fondateur (PF)"}]
[]
[{"$f":"ListesDéroulantes!S8","v":"Nom complet du PF"},null,null,null,null,null,null,null,null,null,{"$f":"IF(OR(D7=\"\",D10=\"\",D12=\"\",G11=\"\",G12=\"\"),ListesDéroulantes!I171,\"\")","v":"Erreur : les données concernant le PF ne sont pas toutes renseignées."}]
[]
[]
[{"$f":"ListesDéroulantes!S11","v":"Sigle du PF"},null,null,null,null,null,{"$f":"ListesDéroulantes!K16","v":"Saisir un n°SIRET de 14digits"}]
[null,null,null,null,null,{"$f":"ListesDéroulantes!H16","v":"N° de SIRET"}]
[{"$f":"ListesDéroulantes!S13","v":"Forme juridique du PF"},null,null,null,null,{"$f":"ListesDéroulantes!H18","v":"Assujetti à la TVA "}]
[]
[]
[null,{"$f":"ListesDéroulantes!S20","v":"Personne habilitée à représenter juridiquement le partenaire fondateur (signataire de la lettre d'engagement)"}]
[]
[{"$f":"ListesDéroulantes!H22","v":"Genre"},null,null,null,null,null,null,null,null,null,{"$f":"IF(OR(D17=\"\",D18=\"\",D19=\"\",D20=\"\"),ListesDéroulantes!I172,\"\")","v":"Erreur : les données concernant la personne habilitée à engager le PF ne sont pas toutes renseignées."}]
[{"$f":"ListesDéroulantes!H23","v":"Prénom"}]
[{"$f":"ListesDéroulantes!H24","v":"Nom"}]
[{"$f":"ListesDéroulantes!H25","v":"Qualité"}]
[]
[null,{"$f":"ListesDéroulantes!S27","v":"Apports détaillés du projet (montant HT en €, incluant la TVA non récupérable le cas échéant)"}]
[null,{"$f":"ListesDéroulantes!I28","v":"Equipements ou amortissement d'équipements de R&D (supérieur à 4 000 € HT)"}]
[]
[null,null,null,null,{"$f":"ListesDéroulantes!L85","v":"Descriptif"},null,{"$f":"ListesDéroulantes!N30","v":"Coût d'achat\n(en €)"},{"$f":"ListesDéroulantes!O30","v":"Pourcentage\nd'utilisation\n(en%)"},{"$f":"ListesDéroulantes!P30","v":"Coût total\n(en €)"}]
[]
[]
[null,{"$f":"B27+1","v":1},null,null,null,null,null,null,{"$f":"IF(AND(G28<>0,H28<>0),G28*H28,\"\")","v":""}]
[null,{"$f":"B28+1","v":2},null,null,null,null,null,null,{"$f":"IF(AND(G29<>0,H29<>0),G29*H29,\"\")","v":""}]
[null,{"$f":"B29+1","v":3},null,null,null,null,null,null,{"$f":"IF(AND(G30<>0,H30<>0),G30*H30,\"\")","v":""}]
[null,null,null,null,"Total",null,null,null,{"$f":"IF(SUM(I28:I30)<>0,SUM(I28:I30),\"- €\")","v":"- €"}]
[null,{"$f":"ListesDéroulantes!S38","v":"Personnels"}]
[]
[null,null,null,{"$f":"ListesDéroulantes!K40","v":"Catégorie de personnel"},{"$f":"ListesDéroulantes!L40","v":"Descriptif"},null,{"$f":"ListesDéroulantes!N40","v":"Coût mensuel\n(en €)"},{"$f":"ListesDéroulantes!O40","v":"Personne. Mois"},{"$f":"ListesDéroulantes!P40","v":"Coût total\n(en €)"}]
[]
[]
[null,{"$f":"B36+1","v":1},null,null,null,null,null,null,{"$f":"IF(G37*H37<>0,G37*H37,\"\")","v":""}]
[null,{"$f":"B37+1","v":2},null,null,null,null,null,null,{"$f":"IF(G38*H38<>0,G38*H38,\"\")","v":""}]
[null,{"$f":"B38+1","v":3},null,null,null,null,null,null,{"$f":"IF(G39*H39<>0,G39*H39,\"\")","v":""}]
[null,"Total",null,null,null,null,null,{"$f":"IF(SUM(H37:H39)<>0,SUM(H37:H39),\"-\")","v":"-"},{"$f":"IF(SUM(I37:I39)<>0,SUM(I37:I39),\"- €\")","v":"- €"}]
[null,{"$f":"ListesDéroulantes!I65","v":"Prestations de service externes"}]
[]
[null,null,null,null,{"$f":"ListesDéroulantes!L67","v":"Descriptif"},null,null,null,{"$f":"ListesDéroulantes!P67","v":"Coût total\n(en €)"}]
[]
[]
[null,{"$f":"B45+1","v":1}]
[null,{"$f":"B46+1","v":2}]
[null,{"$f":"B47+1","v":3}]
[null,null,null,null,"Total",null,null,null,{"$f":"IF(SUM(I46:I48)<>0,SUM(I46:I48),\"- €\")","v":"- €"}]
[null,{"$f":"ListesDéroulantes!I74","v":"Missions"}]
[]
[null,null,null,null,{"$f":"ListesDéroulantes!L76","v":"Descriptif"},null,null,null,{"$f":"ListesDéroulantes!P76","v":"Coût total\n(en €)"}]
[]
[]
[null,{"$f":"B54+1","v":1}]
[null,{"$f":"B55+1","v":2}]
[null,{"$f":"B56+1","v":3}]
[null,null,null,null,"Total",null,null,null,{"$f":"IF(SUM(I55:I57)<>0,SUM(I55:I57),\"- €\")","v":"- €"}]
[null,{"$f":"ListesDéroulantes!I83","v":"Autres dépenses externes (consommables, petits matériels …)"}]
[]
[null,null,null,null,{"$f":"ListesDéroulantes!L85","v":"Descriptif"},null,null,null,{"$f":"ListesDéroulantes!P85","v":"Coût total\n(en €)"}]
[]
[]
[null,{"$f":"B63+1","v":1}]
[null,{"$f":"B64+1","v":2}]
[null,{"$f":"B65+1","v":3}]
[null,null,null,null,"Total",null,null,null,{"$f":"IF(SUM(I64:I66)<>0,SUM(I64:I66),\"- €\")","v":"- €"}]
[null,{"$f":"ListesDéroulantes!I92","v":"Autres dépenses justifiées par une procédure de facturation interne"}]
[]
[null,null,null,null,{"$f":"ListesDéroulantes!L94","v":"Descriptif"},null,{"$f":"ListesDéroulantes!N94","v":"Coût unitaire (en €)"},{"$f":"ListesDéroulantes!O94","v":"Nombre"},{"$f":"ListesDéroulantes!P94","v":"Coût total\n(en €)"}]
[]
[]
[null,{"$f":"B72+1","v":1},null,null,null,null,null,null,{"$f":"IF(G73*H73<>0,G73*H73,\"\")","v":""}]
[null,{"$f":"B73+1","v":2},null,null,null,null,null,null,{"$f":"IF(G74*H74<>0,G74*H74,\"\")","v":""}]
[null,{"$f":"B74+1","v":3},null,null,null,null,null,null,{"$f":"IF(G75*H75<>0,G75*H75,\"\")","v":""}]
[null,null,null,null,"Total",null,null,null,{"$f":"IF(SUM(I73:I75)<>0,SUM(I73:I75),\"- €\")","v":"- €"}]
[]
[]
[null,null,null,null,{"$f":"ListesDéroulantes!L113","v":"Montant total de l'apport du partenaire fondateur (en €)"},null,{"$f":"IF(SUM(I76,I67,I58,I49,I40,I31)<>0,SUM(I76,I67,I58,I49,I40,I31),\"- €\")","v":"- €"}]
[]
[]
[null,{"$f":"ListesDéroulantes!I149","v":"Commentaires (le cas échéant)"}]
[]
[]
[]
[]
[]
[]
[null,{"$f":"ListesDéroulantes!I156","v":"Les informations personnelles transmises dans ces documents sont obligatoires et seront conservées en fichiers par l'ANR pour assurer la conduite opérationnelle de l'évaluation et l'administration des dossiers.\nConformément à la loi n° 78-17 du 6 janvier 1978 modifiée, relative à l'Informatique, aux Fichiers et aux Libertés, les personnes concernées disposent d'un droit d'accès et de rectification des données personnelles les concernant. Les personnes concernées peuvent exercer ce droit en s'adressant à l'ANR (voir coordonnées dans le texte de l’appel à projets)."}]

{"sheet":"Part6","index":9,"n_rows":89,"n_cols":11,"rows_kept":89,"cut":false,"hidden":false,"merged":[[6,0,7,2],[6,3,7,9],[6,10,7,10],[9,0,9,2],[9,6,9,7],[10,0,10,2],[10,6,10,7],[0,0,2,4],[0,5,0,9],[0,10,4,10],[1,5,1,6],[1,7,1,9],[2,5,2,6],[2,7,2,9],[4,1,4,9],[16,10,19,10],[17,0,17,2],[17,3,17,9],[18,0,18,2],[18,3,18,9],[19,0,19,2],[19,3,19,9],[11,0,12,2],[11,3,12,3],[11,6,11,7],[13,0,13,2],[14,1,14,9],[16,0,16,2],[24,10,26,10],[27,1,27,3],[27,4,27,5],[28,1,28,3],[28,4,28,5],[29,1,29,3],[29,4,29,5],[21,1,21,9],[22,1,23,9],[24,1,26,1],[24,2,26,2],[24,3,26,3],[24,4,26,5],[24,6,26,6],[24,7,26,7],[24,8,26,8],[24,9,26,9],[36,1,36,2],[36,4,36,5],[37,1,37,2],[37,4,37,5],[38,1,38,2],[38,4,38,5],[31,1,32,9],[33,1,35,1],[33,2,35,2],[33,3,35,3],[33,4,35,5],[33,6,35,6],[33,7,35,7],[33,8,35,8],[33,9,35,9],[45,1,45,3],[45,4,45,5],[46,1,46,3],[46,4,46,5],[47,1,47,3],[47,4,47,5],[39,1,39,6],[40,1,41,9],[42,1,44,1],[42,2,44,2],[42,3,44,3],[42,4,44,5],[42,6,44,6],[42,7,44,7],[42,8,44,8],[42,9,44,9],[54,1,54,3],[54,4,54,5],[55,1,55,3],[55,4,55,5],[56,1,56,3],[56,4,56,5],[49,1,50,9],[51,1,53,1],[51,2,53,2],[51,3,53,3],[51,4,53,5],[51,6,53,6],[51,7,53,7],[51,8,53,8],[51,9,53,9],[63,1,63,3],[63,4,63,5],[64,1,64,3],[64,4,64,5],[65,1,65,3],[65,4,65,5],[58,1,59,9],[60,1,62,1],[60,2,62,2],[60,3,62,3],[60,4,62,5],[60,6,62,6],[60,7,62,7],[60,8,62,8],[60,9,62,9],[67,1,68,9],[69,1,71,1],[69,2,71,2],[69,3,71,3],[69,4,71,5],[69,6,71,6],[69,7,71,7],[69,8,71,8],[69,9,71,9],[88,1,90,9],[76,1,77,9],[78,4,79,5],[78,6,79,7],[78,8,79,9],[81,1,81,9],[83,1,86,9],[72,1,72,3],[72,4,72,5],[73,1,73,3],[73,4,73,5],[74,1,74,3],[74,4,74,5]]}
[{"$f":"ListesDéroulantes!H2&IF(ISNUMBER(RIGHT(CELL(\"filename\",$A$1),2)*1),RIGHT(CELL(\"filename\",$A$1),2)*1,IF(ISNUMBER(RIGHT(CELL(\"filename\",$A$1),1)*1),RIGHT(CELL(\"filename\",$A$1),1)*1,\"N/A\"))&ListesDéroulantes!I2","v":"Fiche partenaire n°6 : Identification et budget"},null,null,null,null,{"$f":"ListesDéroulantes!M2","v":"Réservé à l'ANR"},null,null,null,null,{"$f":"IF(COUNTIF(K6:K1508,\"Err*\")>0,COUNTIF(K6:K1508,\"Err*\")&\" \"&ListesDéroulantes!I184&IF(COUNTIF(K6:K1508,\"Err*\")>1,\"s\",\"\"),\"\")","v":"2 erreurs"}]
[null,null,null,null,null,{"$f":"ListesDéroulantes!M3","v":"N° de dossier"},null,{"$f":"Notice!H5","v":"ANR-17-IHU2-00"}]
[null,null,null,null,null,{"$f":"ListesDéroulantes!M4","v":"Acronyme"},null,{"$f":"IF(Volet_general!D10<>\"\",Volet_general!D10,\"\")","v":""}]
[]
[null,{"$f":"ListesDéroulantes!S6","v":"Identification du partenaire fondateur (PF)"}]
[]
[{"$f":"ListesDéroulantes!S8","v":"Nom complet du PF"},null,null,null,null,null,null,null,null,null,{"$f":"IF(OR(D7=\"\",D10=\"\",D12=\"\",G11=\"\",G12=\"\"),ListesDéroulantes!I171,\"\")","v":"Erreur : les données concernant le PF ne sont pas toutes renseignées."}]
[]
[]
[{"$f":"ListesDéroulantes!S11","v":"Sigle du PF"},null,null,null,null,null,{"$f":"ListesDéroulantes!K16","v":"Saisir un n°SIRET de 14digits"}]
[null,null,null,null,null,{"$f":"ListesDéroulantes!H16","v":"N° de SIRET"}]
[{"$f":"ListesDéroulantes!S13","v":"Forme juridique du PF"},null,null,null,null,{"$f":"ListesDéroulantes!H18","v":"Assujetti à la TVA "}]
[]
[]
[null,{"$f":"ListesDéroulantes!S20","v":"Personne habilitée à représenter juridiquement le partenaire fondateur (signataire de la lettre d'engagement)"}]
[]
[{"$f":"ListesDéroulantes!H22","v":"Genre"},null,null,null,null,null,null,null,null,null,{"$f":"IF(OR(D17=\"\",D18=\"\",D19=\"\",D20=\"\"),ListesDéroulantes!I172,\"\")","v":"Erreur : les données concernant la personne habilitée à engager le PF ne sont pas toutes renseignées."}]
[{"$f":"ListesDéroulantes!H23","v":"Prénom"}]
[{"$f":"ListesDéroulantes!H24","v":"Nom"}]
[{"$f":"ListesDéroulantes!H25","v":"Qualité"}]
[]
[null,{"$f":"ListesDéroulantes!S27","v":"Apports détaillés du projet (montant HT en €, incluant la TVA non récupérable le cas échéant)"}]
[null,{"$f":"ListesDéroulantes!I28","v":"Equipements ou amortissement d'équipements de R&D (supérieur à 4 000 € HT)"}]
[]
[null,null,null,null,{"$f":"ListesDéroulantes!L85","v":"Descriptif"},null,{"$f":"ListesDéroulantes!N30","v":"Coût d'achat\n(en €)"},{"$f":"ListesDéroulantes!O30","v":"Pourcentage\nd'utilisation\n(en%)"},{"$f":"ListesDéroulantes!P30","v":"Coût total\n(en €)"}]
[]
[]
[null,{"$f":"B27+1","v":1},null,null,null,null,null,null,{"$f":"IF(AND(G28<>0,H28<>0),G28*H28,\"\")","v":""}]
[null,{"$f":"B28+1","v":2},null,null,null,null,null,null,{"$f":"IF(AND(G29<>0,H29<>0),G29*H29,\"\")","v":""}]
[null,{"$f":"B29+1","v":3},null,null,null,null,null,null,{"$f":"IF(AND(G30<>0,H30<>0),G30*H30,\"\")","v":""}]
[null,null,null,null,"Total",null,null,null,{"$f":"IF(SUM(I28:I30)<>0,SUM(I28:I30),\"- €\")","v":"- €"}]
[null,{"$f":"ListesDéroulantes!S38","v":"Personnels"}]
[]
[null,null,null,{"$f":"ListesDéroulantes!K40","v":"Catégorie de personnel"},{"$f":"ListesDéroulantes!L40","v":"Descriptif"},null,{"$f":"ListesDéroulantes!N40","v":"Coût mensuel\n(en €)"},{"$f":"ListesDéroulantes!O40","v":"Personne. Mois"},{"$f":"ListesDéroulantes!P40","v":"Coût total\n(en €)"}]
[]
[]
[null,{"$f":"B36+1","v":1},null,null,null,null,null,null,{"$f":"IF(G37*H37<>0,G37*H37,\"\")","v":""}]
[null,{"$f":"B37+1","v":2},null,null,null,null,null,null,{"$f":"IF(G38*H38<>0,G38*H38,\"\")","v":""}]
[null,{"$f":"B38+1","v":3},null,null,null,null,null,null,{"$f":"IF(G39*H39<>0,G39*H39,\"\")","v":""}]
[null,"Total",null,null,null,null,null,{"$f":"IF(SUM(H37:H39)<>0,SUM(H37:H39),\"-\")","v":"-"},{"$f":"IF(SUM(I37:I39)<>0,SUM(I37:I39),\"- €\")","v":"- €"}]
[null,{"$f":"ListesDéroulantes!I65","v":"Prestations de service externes"}]
[]
[null,null,null,null,{"$f":"ListesDéroulantes!L67","v":"Descriptif"},null,null,null,{"$f":"ListesDéroulantes!P67","v":"Coût total\n(en €)"}]
[]
[]
[null,{"$f":"B45+1","v":1}]
[null,{"$f":"B46+1","v":2}]
[null,{"$f":"B47+1","v":3}]
[null,null,null,null,"Total",null,null,null,{"$f":"IF(SUM(I46:I48)<>0,SUM(I46:I48),\"- €\")","v":"- €"}]
[null,{"$f":"ListesDéroulantes!I74","v":"Missions"}]
[]
[null,null,null,null,{"$f":"ListesDéroulantes!L76","v":"Descriptif"},null,null,null,{"$f":"ListesDéroulantes!P76","v":"Coût total\n(en €)"}]
[]
[]
[null,{"$f":"B54+1","v":1}]
[null,{"$f":"B55+1","v":2}]
[null,{"$f":"B56+1","v":3}]
[null,null,null,null,"Total",null,null,null,{"$f":"IF(SUM(I55:I57)<>0,SUM(I55:I57),\"- €\")","v":"- €"}]
[null,{"$f":"ListesDéroulantes!I83","v":"Autres dépenses externes (consommables, petits matériels …)"}]
[]
[null,null,null,null,{"$f":"ListesDéroulantes!L85","v":"Descriptif"},null,null,null,{"$f":"ListesDéroulantes!P85","v":"Coût total\n(en €)"}]
[]
[]
[null,{"$f":"B63+1","v":1}]
[null,{"$f":"B64+1","v":2}]
[null,{"$f":"B65+1","v":3}]
[null,null,null,null,"Total",null,null,null,{"$f":"IF(SUM(I64:I66)<>0,SUM(I64:I66),\"- €\")","v":"- €"}]
[null,{"$f":"ListesDéroulantes!I92","v":"Autres dépenses justifiées par une procédure de facturation interne"}]
[]
[null,null,null,null,{"$f":"ListesDéroulantes!L94","v":"Descriptif"},null,{"$f":"ListesDéroulantes!N94","v":"Coût unitaire (en €)"},{"$f":"ListesDéroulantes!O94","v":"Nombre"},{"$f":"ListesDéroulantes!P94","v":"Coût total\n(en €)"}]
[]
[]
[null,{"$f":"B72+1","v":1},null,null,null,null,null,null,{"$f":"IF(G73*H73<>0,G73*H73,\"\")","v":""}]
[null,{"$f":"B73+1","v":2},null,null,null,null,null,null,{"$f":"IF(G74*H74<>0,G74*H74,\"\")","v":""}]
[null,{"$f":"B74+1","v":3},null,null,null,null,null,null,{"$f":"IF(G75*H75<>0,G75*H75,\"\")","v":""}]
[null,null,null,null,"Total",null,null,null,{"$f":"IF(SUM(I73:I75)<>0,SUM(I73:I75),\"- €\")","v":"- €"}]
[]
[]
[null,null,null,null,{"$f":"ListesDéroulantes!L113","v":"Montant total de l'apport du partenaire fondateur (en €)"},null,{"$f":"IF(SUM(I76,I67,I58,I49,I40,I31)<>0,SUM(I76,I67,I58,I49,I40,I31),\"- €\")","v":"- €"}]
[]
[]
[null,{"$f":"ListesDéroulantes!I149","v":"Commentaires (le cas échéant)"}]
[]
[]
[]
[]
[]
[]
[null,{"$f":"ListesDéroulantes!I156","v":"Les informations personnelles transmises dans ces documents sont obligatoires et seront conservées en fichiers par l'ANR pour assurer la conduite opérationnelle de l'évaluation et l'administration des dossiers.\nConformément à la loi n° 78-17 du 6 janvier 1978 modifiée, relative à l'Informatique, aux Fichiers et aux Libertés, les personnes concernées disposent d'un droit d'accès et de rectification des données personnelles les concernant. Les personnes concernées peuvent exercer ce droit en s'adressant à l'ANR (voir coordonnées dans le texte de l’appel à projets)."}]

{"sheet":"Part7","index":10,"n_rows":89,"n_cols":11,"rows_kept":89,"cut":false,"hidden":false,"merged":[[6,0,7,2],[6,3,7,9],[6,10,7,10],[9,0,9,2],[9,6,9,7],[10,0,10,2],[10,6,10,7],[0,0,2,4],[0,5,0,9],[0,10,4,10],[1,5,1,6],[1,7,1,9],[2,5,2,6],[2,7,2,9],[4,1,4,9],[16,10,19,10],[17,0,17,2],[17,3,17,9],[18,0,18,2],[18,3,18,9],[19,0,19,2],[19,3,19,9],[11,0,12,2],[11,3,12,3],[11,6,11,7],[13,0,13,2],[14,1,14,9],[16,0,16,2],[24,10,26,10],[27,1,27,3],[27,4,27,5],[28,1,28,3],[28,4,28,5],[29,1,29,3],[29,4,29,5],[21,1,21,9],[22,1,23,9],[24,1,26,1],[24,2,26,2],[24,3,26,3],[24,4,26,5],[24,6,26,6],[24,7,26,7],[24,8,26,8],[24,9,26,9],[36,1,36,2],[36,4,36,5],[37,1,37,2],[37,4,37,5],[38,1,38,2],[38,4,38,5],[31,1,32,9],[33,1,35,1],[33,2,35,2],[33,3,35,3],[33,4,35,5],[33,6,35,6],[33,7,35,7],[33,8,35,8],[33,9,35,9],[45,1,45,3],[45,4,45,5],[46,1,46,3],[46,4,46,5],[47,1,47,3],[47,4,47,5],[39,1,39,6],[40,1,41,9],[42,1,44,1],[42,2,44,2],[42,3,44,3],[42,4,44,5],[42,6,44,6],[42,7,44,7],[42,8,44,8],[42,9,44,9],[54,1,54,3],[54,4,54,5],[55,1,55,3],[55,4,55,5],[56,1,56,3],[56,4,56,5],[49,1,50,9],[51,1,53,1],[51,2,53,2],[51,3,53,3],[51,4,53,5],[51,6,53,6],[51,7,53,7],[51,8,53,8],[51,9,53,9],[63,1,63,3],[63,4,63,5],[64,1,64,3],[64,4,64,5],[65,1,65,3],[65,4,65,5],[58,1,59,9],[60,1,62,1],[60,2,62,2],[60,3,62,3],[60,4,62,5],[60,6,62,6],[60,7,62,7],[60,8,62,8],[60,9,62,9],[67,1,68,9],[69,1,71,1],[69,2,71,2],[69,3,71,3],[69,4,71,5],[69,6,71,6],[69,7,71,7],[69,8,71,8],[69,9,71,9],[88,1,90,9],[76,1,77,9],[78,4,79,5],[78,6,79,7],[78,8,79,9],[81,1,81,9],[83,1,86,9],[72,1,72,3],[72,4,72,5],[73,1,73,3],[73,4,73,5],[74,1,74,3],[74,4,74,5]]}
[{"$f":"ListesDéroulantes!H2&IF(ISNUMBER(RIGHT(CELL(\"filename\",$A$1),2)*1),RIGHT(CELL(\"filename\",$A$1),2)*1,IF(ISNUMBER(RIGHT(CELL(\"filename\",$A$1),1)*1),RIGHT(CELL(\"filename\",$A$1),1)*1,\"N/A\"))&ListesDéroulantes!I2","v":"Fiche partenaire n°7 : Identification et budget"},null,null,null,null,{"$f":"ListesDéroulantes!M2","v":"Réservé à l'ANR"},null,null,null,null,{"$f":"IF(COUNTIF(K6:K1508,\"Err*\")>0,COUNTIF(K6:K1508,\"Err*\")&\" \"&ListesDéroulantes!I184&IF(COUNTIF(K6:K1508,\"Err*\")>1,\"s\",\"\"),\"\")","v":"2 erreurs"}]
[null,null,null,null,null,{"$f":"ListesDéroulantes!M3","v":"N° de dossier"},null,{"$f":"Notice!H5","v":"ANR-17-IHU2-00"}]
[null,null,null,null,null,{"$f":"ListesDéroulantes!M4","v":"Acronyme"},null,{"$f":"IF(Volet_general!D10<>\"\",Volet_general!D10,\"\")","v":""}]
[]
[null,{"$f":"ListesDéroulantes!S6","v":"Identification du partenaire fondateur (PF)"}]
[]
[{"$f":"ListesDéroulantes!S8","v":"Nom complet du PF"},null,null,null,null,null,null,null,null,null,{"$f":"IF(OR(D7=\"\",D10=\"\",D12=\"\",G11=\"\",G12=\"\"),ListesDéroulantes!I171,\"\")","v":"Erreur : les données concernant le PF ne sont pas toutes renseignées."}]
[]
[]
[{"$f":"ListesDéroulantes!S11","v":"Sigle du PF"},null,null,null,null,null,{"$f":"ListesDéroulantes!K16","v":"Saisir un n°SIRET de 14digits"}]
[null,null,null,null,null,{"$f":"ListesDéroulantes!H16","v":"N° de SIRET"}]
[{"$f":"ListesDéroulantes!S13","v":"Forme juridique du PF"},null,null,null,null,{"$f":"ListesDéroulantes!H18","v":"Assujetti à la TVA "}]
[]
[]
[null,{"$f":"ListesDéroulantes!S20","v":"Personne habilitée à représenter juridiquement le partenaire fondateur (signataire de la lettre d'engagement)"}]
[]
[{"$f":"ListesDéroulantes!H22","v":"Genre"},null,null,null,null,null,null,null,null,null,{"$f":"IF(OR(D17=\"\",D18=\"\",D19=\"\",D20=\"\"),ListesDéroulantes!I172,\"\")","v":"Erreur : les données concernant la personne habilitée à engager le PF ne sont pas toutes renseignées."}]
[{"$f":"ListesDéroulantes!H23","v":"Prénom"}]
[{"$f":"ListesDéroulantes!H24","v":"Nom"}]
[{"$f":"ListesDéroulantes!H25","v":"Qualité"}]
[]
[null,{"$f":"ListesDéroulantes!S27","v":"Apports détaillés du projet (montant HT en €, incluant la TVA non récupérable le cas échéant)"}]
[null,{"$f":"ListesDéroulantes!I28","v":"Equipements ou amortissement d'équipements de R&D (supérieur à 4 000 € HT)"}]
[]
[null,null,null,null,{"$f":"ListesDéroulantes!L85","v":"Descriptif"},null,{"$f":"ListesDéroulantes!N30","v":"Coût d'achat\n(en €)"},{"$f":"ListesDéroulantes!O30","v":"Pourcentage\nd'utilisation\n(en%)"},{"$f":"ListesDéroulantes!P30","v":"Coût total\n(en €)"}]
[]
[]
[null,{"$f":"B27+1","v":1},null,null,null,null,null,null,{"$f":"IF(AND(G28<>0,H28<>0),G28*H28,\"\")","v":""}]
[null,{"$f":"B28+1","v":2},null,null,null,null,null,null,{"$f":"IF(AND(G29<>0,H29<>0),G29*H29,\"\")","v":""}]
[null,{"$f":"B29+1","v":3},null,null,null,null,null,null,{"$f":"IF(AND(G30<>0,H30<>0),G30*H30,\"\")","v":""}]
[null,null,null,null,"Total",null,null,null,{"$f":"IF(SUM(I28:I30)<>0,SUM(I28:I30),\"- €\")","v":"- €"}]
[null,{"$f":"ListesDéroulantes!S38","v":"Personnels"}]
[]
[null,null,null,{"$f":"ListesDéroulantes!K40","v":"Catégorie de personnel"},{"$f":"ListesDéroulantes!L40","v":"Descriptif"},null,{"$f":"ListesDéroulantes!N40","v":"Coût mensuel\n(en €)"},{"$f":"ListesDéroulantes!O40","v":"Personne. Mois"},{"$f":"ListesDéroulantes!P40","v":"Coût total\n(en €)"}]
[]
[]
[null,{"$f":"B36+1","v":1},null,null,null,null,null,null,{"$f":"IF(G37*H37<>0,G37*H37,\"\")","v":""}]
[null,{"$f":"B37+1","v":2},null,null,null,null,null,null,{"$f":"IF(G38*H38<>0,G38*H38,\"\")","v":""}]
[null,{"$f":"B38+1","v":3},null,null,null,null,null,null,{"$f":"IF(G39*H39<>0,G39*H39,\"\")","v":""}]
[null,"Total",null,null,null,null,null,{"$f":"IF(SUM(H37:H39)<>0,SUM(H37:H39),\"-\")","v":"-"},{"$f":"IF(SUM(I37:I39)<>0,SUM(I37:I39),\"- €\")","v":"- €"}]
[null,{"$f":"ListesDéroulantes!I65","v":"Prestations de service externes"}]
[]
[null,null,null,null,{"$f":"ListesDéroulantes!L67","v":"Descriptif"},null,null,null,{"$f":"ListesDéroulantes!P67","v":"Coût total\n(en €)"}]
[]
[]
[null,{"$f":"B45+1","v":1}]
[null,{"$f":"B46+1","v":2}]
[null,{"$f":"B47+1","v":3}]
[null,null,null,null,"Total",null,null,null,{"$f":"IF(SUM(I46:I48)<>0,SUM(I46:I48),\"- €\")","v":"- €"}]
[null,{"$f":"ListesDéroulantes!I74","v":"Missions"}]
[]
[null,null,null,null,{"$f":"ListesDéroulantes!L76","v":"Descriptif"},null,null,null,{"$f":"ListesDéroulantes!P76","v":"Coût total\n(en €)"}]
[]
[]
[null,{"$f":"B54+1","v":1}]
[null,{"$f":"B55+1","v":2}]
[null,{"$f":"B56+1","v":3}]
[null,null,null,null,"Total",null,null,null,{"$f":"IF(SUM(I55:I57)<>0,SUM(I55:I57),\"- €\")","v":"- €"}]
[null,{"$f":"ListesDéroulantes!I83","v":"Autres dépenses externes (consommables, petits matériels …)"}]
[]
[null,null,null,null,{"$f":"ListesDéroulantes!L85","v":"Descriptif"},null,null,null,{"$f":"ListesDéroulantes!P85","v":"Coût total\n(en €)"}]
[]
[]
[null,{"$f":"B63+1","v":1}]
[null,{"$f":"B64+1","v":2}]
[null,{"$f":"B65+1","v":3}]
[null,null,null,null,"Total",null,null,null,{"$f":"IF(SUM(I64:I66)<>0,SUM(I64:I66),\"- €\")","v":"- €"}]
[null,{"$f":"ListesDéroulantes!I92","v":"Autres dépenses justifiées par une procédure de facturation interne"}]
[]
[null,null,null,null,{"$f":"ListesDéroulantes!L94","v":"Descriptif"},null,{"$f":"ListesDéroulantes!N94","v":"Coût unitaire (en €)"},{"$f":"ListesDéroulantes!O94","v":"Nombre"},{"$f":"ListesDéroulantes!P94","v":"Coût total\n(en €)"}]
[]
[]
[null,{"$f":"B72+1","v":1},null,null,null,null,null,null,{"$f":"IF(G73*H73<>0,G73*H73,\"\")","v":""}]
[null,{"$f":"B73+1","v":2},null,null,null,null,null,null,{"$f":"IF(G74*H74<>0,G74*H74,\"\")","v":""}]
[null,{"$f":"B74+1","v":3},null,null,null,null,null,null,{"$f":"IF(G75*H75<>0,G75*H75,\"\")","v":""}]
[null,null,null,null,"Total",null,null,null,{"$f":"IF(SUM(I73:I75)<>0,SUM(I73:I75),\"- €\")","v":"- €"}]
[]
[]
[null,null,null,null,{"$f":"ListesDéroulantes!L113","v":"Montant total de l'apport du partenaire fondateur (en €)"},null,{"$f":"IF(SUM(I76,I67,I58,I49,I40,I31)<>0,SUM(I76,I67,I58,I49,I40,I31),\"- €\")","v":"- €"}]
[]
[]
[null,{"$f":"ListesDéroulantes!I149","v":"Commentaires (le cas échéant)"}]
[]
[]
[]
[]
[]
[]
[null,{"$f":"ListesDéroulantes!I156","v":"Les informations personnelles transmises dans ces documents sont obligatoires et seront conservées en fichiers par l'ANR pour assurer la conduite opérationnelle de l'évaluation et l'administration des dossiers.\nConformément à la loi n° 78-17 du 6 janvier 1978 modifiée, relative à l'Informatique, aux Fichiers et aux Libertés, les personnes concernées disposent d'un droit d'accès et de rectification des données personnelles les concernant. Les personnes concernées peuvent exercer ce droit en s'adressant à l'ANR (voir coordonnées dans le texte de l’appel à projets)."}]

{"sheet":"Part8","index":11,"n_rows":89,"n_cols":11,"rows_kept":89,"cut":false,"hidden":false,"merged":[[6,0,7,2],[6,3,7,9],[6,10,7,10],[9,0,9,2],[9,6,9,7],[10,0,10,2],[10,6,10,7],[0,0,2,4],[0,5,0,9],[0,10,4,10],[1,5,1,6],[1,7,1,9],[2,5,2,6],[2,7,2,9],[4,1,4,9],[16,10,19,10],[17,0,17,2],[17,3,17,9],[18,0,18,2],[18,3,18,9],[19,0,19,2],[19,3,19,9],[11,0,12,2],[11,3,12,3],[11,6,11,7],[13,0,13,2],[14,1,14,9],[16,0,16,2],[24,10,26,10],[27,1,27,3],[27,4,27,5],[28,1,28,3],[28,4,28,5],[29,1,29,3],[29,4,29,5],[21,1,21,9],[22,1,23,9],[24,1,26,1],[24,2,26,2],[24,3,26,3],[24,4,26,5],[24,6,26,6],[24,7,26,7],[24,8,26,8],[24,9,26,9],[36,1,36,2],[36,4,36,5],[37,1,37,2],[37,4,37,5],[38,1,38,2],[38,4,38,5],[31,1,32,9],[33,1,35,1],[33,2,35,2],[33,3,35,3],[33,4,35,5],[33,6,35,6],[33,7,35,7],[33,8,35,8],[33,9,35,9],[45,1,45,3],[45,4,45,5],[46,1,46,3],[46,4,46,5],[47,1,47,3],[47,4,47,5],[39,1,39,6],[40,1,41,9],[42,1,44,1],[42,2,44,2],[42,3,44,3],[42,4,44,5],[42,6,44,6],[42,7,44,7],[42,8,44,8],[42,9,44,9],[54,1,54,3],[54,4,54,5],[55,1,55,3],[55,4,55,5],[56,1,56,3],[56,4,56,5],[49,1,50,9],[51,1,53,1],[51,2,53,2],[51,3,53,3],[51,4,53,5],[51,6,53,6],[51,7,53,7],[51,8,53,8],[51,9,53,9],[63,1,63,3],[63,4,63,5],[64,1,64,3],[64,4,64,5],[65,1,65,3],[65,4,65,5],[58,1,59,9],[60,1,62,1],[60,2,62,2],[60,3,62,3],[60,4,62,5],[60,6,62,6],[60,7,62,7],[60,8,62,8],[60,9,62,9],[67,1,68,9],[69,1,71,1],[69,2,71,2],[69,3,71,3],[69,4,71,5],[69,6,71,6],[69,7,71,7],[69,8,71,8],[69,9,71,9],[88,1,90,9],[76,1,77,9],[78,4,79,5],[78,6,79,7],[78,8,79,9],[81,1,81,9],[83,1,86,9],[72,1,72,3],[72,4,72,5],[73,1,73,3],[73,4,73,5],[74,1,74,3],[74,4,74,5]]}
[{"$f":"ListesDéroulantes!H2&IF(ISNUMBER(RIGHT(CELL(\"filename\",$A$1),2)*1),RIGHT(CELL(\"filename\",$A$1),2)*1,IF(ISNUMBER(RIGHT(CELL(\"filename\",$A$1),1)*1),RIGHT(CELL(\"filename\",$A$1),1)*1,\"N/A\"))&ListesDéroulantes!I2","v":"Fiche partenaire n°8 : Identification et budget"},null,null,null,null,{"$f":"ListesDéroulantes!M2","v":"Réservé à l'ANR"},null,null,null,null,{"$f":"IF(COUNTIF(K6:K1508,\"Err*\")>0,COUNTIF(K6:K1508,\"Err*\")&\" \"&ListesDéroulantes!I184&IF(COUNTIF(K6:K1508,\"Err*\")>1,\"s\",\"\"),\"\")","v":"2 erreurs"}]
[null,null,null,null,null,{"$f":"ListesDéroulantes!M3","v":"N° de dossier"},null,{"$f":"Notice!H5","v":"ANR-17-IHU2-00"}]
[null,null,null,null,null,{"$f":"ListesDéroulantes!M4","v":"Acronyme"},null,{"$f":"IF(Volet_general!D10<>\"\",Volet_general!D10,\"\")","v":""}]
[]
[null,{"$f":"ListesDéroulantes!S6","v":"Identification du partenaire fondateur (PF)"}]
[]
[{"$f":"ListesDéroulantes!S8","v":"Nom complet du PF"},null,null,null,null,null,null,null,null,null,{"$f":"IF(OR(D7=\"\",D10=\"\",D12=\"\",G11=\"\",G12=\"\"),ListesDéroulantes!I171,\"\")","v":"Erreur : les données concernant le PF ne sont pas toutes renseignées."}]
[]
[]
[{"$f":"ListesDéroulantes!S11","v":"Sigle du PF"},null,null,null,null,null,{"$f":"ListesDéroulantes!K16","v":"Saisir un n°SIRET de 14digits"}]
[null,null,null,null,null,{"$f":"ListesDéroulantes!H16","v":"N° de SIRET"}]
[{"$f":"ListesDéroulantes!S13","v":"Forme juridique du PF"},null,null,null,null,{"$f":"ListesDéroulantes!H18","v":"Assujetti à la TVA "}]
[]
[]
[null,{"$f":"ListesDéroulantes!S20","v":"Personne habilitée à représenter juridiquement le partenaire fondateur (signataire de la lettre d'engagement)"}]
[]
[{"$f":"ListesDéroulantes!H22","v":"Genre"},null,null,null,null,null,null,null,null,null,{"$f":"IF(OR(D17=\"\",D18=\"\",D19=\"\",D20=\"\"),ListesDéroulantes!I172,\"\")","v":"Erreur : les données concernant la personne habilitée à engager le PF ne sont pas toutes renseignées."}]
[{"$f":"ListesDéroulantes!H23","v":"Prénom"}]
[{"$f":"ListesDéroulantes!H24","v":"Nom"}]
[{"$f":"ListesDéroulantes!H25","v":"Qualité"}]
[]
[null,{"$f":"ListesDéroulantes!S27","v":"Apports détaillés du projet (montant HT en €, incluant la TVA non récupérable le cas échéant)"}]
[null,{"$f":"ListesDéroulantes!I28","v":"Equipements ou amortissement d'équipements de R&D (supérieur à 4 000 € HT)"}]
[]
[null,null,null,null,{"$f":"ListesDéroulantes!L85","v":"Descriptif"},null,{"$f":"ListesDéroulantes!N30","v":"Coût d'achat\n(en €)"},{"$f":"ListesDéroulantes!O30","v":"Pourcentage\nd'utilisation\n(en%)"},{"$f":"ListesDéroulantes!P30","v":"Coût total\n(en €)"}]
[]
[]
[null,{"$f":"B27+1","v":1},null,null,null,null,null,null,{"$f":"IF(AND(G28<>0,H28<>0),G28*H28,\"\")","v":""}]
[null,{"$f":"B28+1","v":2},null,null,null,null,null,null,{"$f":"IF(AND(G29<>0,H29<>0),G29*H29,\"\")","v":""}]
[null,{"$f":"B29+1","v":3},null,null,null,null,null,null,{"$f":"IF(AND(G30<>0,H30<>0),G30*H30,\"\")","v":""}]
[null,null,null,null,"Total",null,null,null,{"$f":"IF(SUM(I28:I30)<>0,SUM(I28:I30),\"- €\")","v":"- €"}]
[null,{"$f":"ListesDéroulantes!S38","v":"Personnels"}]
[]
[null,null,null,{"$f":"ListesDéroulantes!K40","v":"Catégorie de personnel"},{"$f":"ListesDéroulantes!L40","v":"Descriptif"},null,{"$f":"ListesDéroulantes!N40","v":"Coût mensuel\n(en €)"},{"$f":"ListesDéroulantes!O40","v":"Personne. Mois"},{"$f":"ListesDéroulantes!P40","v":"Coût total\n(en €)"}]
[]
[]
[null,{"$f":"B36+1","v":1},null,null,null,null,null,null,{"$f":"IF(G37*H37<>0,G37*H37,\"\")","v":""}]
[null,{"$f":"B37+1","v":2},null,null,null,null,null,null,{"$f":"IF(G38*H38<>0,G38*H38,\"\")","v":""}]
[null,{"$f":"B38+1","v":3},null,null,null,null,null,null,{"$f":"IF(G39*H39<>0,G39*H39,\"\")","v":""}]
[null,"Total",null,null,null,null,null,{"$f":"IF(SUM(H37:H39)<>0,SUM(H37:H39),\"-\")","v":"-"},{"$f":"IF(SUM(I37:I39)<>0,SUM(I37:I39),\"- €\")","v":"- €"}]
[null,{"$f":"ListesDéroulantes!I65","v":"Prestations de service externes"}]
[]
[null,null,null,null,{"$f":"ListesDéroulantes!L67","v":"Descriptif"},null,null,null,{"$f":"ListesDéroulantes!P67","v":"Coût total\n(en €)"}]
[]
[]
[null,{"$f":"B45+1","v":1}]
[null,{"$f":"B46+1","v":2}]
[null,{"$f":"B47+1","v":3}]
[null,null,null,null,"Total",null,null,null,{"$f":"IF(SUM(I46:I48)<>0,SUM(I46:I48),\"- €\")","v":"- €"}]
[null,{"$f":"ListesDéroulantes!I74","v":"Missions"}]
[]
[null,null,null,null,{"$f":"ListesDéroulantes!L76","v":"Descriptif"},null,null,null,{"$f":"ListesDéroulantes!P76","v":"Coût total\n(en €)"}]
[]
[]
[null,{"$f":"B54+1","v":1}]
[null,{"$f":"B55+1","v":2}]
[null,{"$f":"B56+1","v":3}]
[null,null,null,null,"Total",null,null,null,{"$f":"IF(SUM(I55:I57)<>0,SUM(I55:I57),\"- €\")","v":"- €"}]
[null,{"$f":"ListesDéroulantes!I83","v":"Autres dépenses externes (consommables, petits matériels …)"}]
[]
[null,null,null,null,{"$f":"ListesDéroulantes!L85","v":"Descriptif"},null,null,null,{"$f":"ListesDéroulantes!P85","v":"Coût total\n(en €)"}]
[]
[]
[null,{"$f":"B63+1","v":1}]
[null,{"$f":"B64+1","v":2}]
[null,{"$f":"B65+1","v":3}]
[null,null,null,null,"Total",null,null,null,{"$f":"IF(SUM(I64:I66)<>0,SUM(I64:I66),\"- €\")","v":"- €"}]
[null,{"$f":"ListesDéroulantes!I92","v":"Autres dépenses justifiées par une procédure de facturation interne"}]
[]
[null,null,null,null,{"$f":"ListesDéroulantes!L94","v":"Descriptif"},null,{"$f":"ListesDéroulantes!N94","v":"Coût unitaire (en €)"},{"$f":"ListesDéroulantes!O94","v":"Nombre"},{"$f":"ListesDéroulantes!P94","v":"Coût total\n(en €)"}]
[]
[]
[null,{"$f":"B72+1","v":1},null,null,null,null,null,null,{"$f":"IF(G73*H73<>0,G73*H73,\"\")","v":""}]
[null,{"$f":"B73+1","v":2},null,null,null,null,null,null,{"$f":"IF(G74*H74<>0,G74*H74,\"\")","v":""}]
[null,{"$f":"B74+1","v":3},null,null,null,null,null,null,{"$f":"IF(G75*H75<>0,G75*H75,\"\")","v":""}]
[null,null,null,null,"Total",null,null,null,{"$f":"IF(SUM(I73:I75)<>0,SUM(I73:I75),\"- €\")","v":"- €"}]
[]
[]
[null,null,null,null,{"$f":"ListesDéroulantes!L113","v":"Montant total de l'apport du partenaire fondateur (en €)"},null,{"$f":"IF(SUM(I76,I67,I58,I49,I40,I31)<>0,SUM(I76,I67,I58,I49,I40,I31),\"- €\")","v":"- €"}]
[]
[]
[null,{"$f":"ListesDéroulantes!I149","v":"Commentaires (le cas échéant)"}]
[]
[]
[]
[]
[]
[]
[null,{"$f":"ListesDéroulantes!I156","v":"Les informations personnelles transmises dans ces documents sont obligatoires et seront conservées en fichiers par l'ANR pour assurer la conduite opérationnelle de l'évaluation et l'administration des dossiers.\nConformément à la loi n° 78-17 du 6 janvier 1978 modifiée, relative à l'Informatique, aux Fichiers et aux Libertés, les personnes concernées disposent d'un droit d'accès et de rectification des données personnelles les concernant. Les personnes concernées peuvent exercer ce droit en s'adressant à l'ANR (voir coordonnées dans le texte de l’appel à projets)."}]

{"sheet":"Part9","index":12,"n_rows":89,"n_cols":11,"rows_kept":89,"cut":false,"hidden":false,"merged":[[6,0,7,2],[6,3,7,9],[6,10,7,10],[9,0,9,2],[9,6,9,7],[10,0,10,2],[10,6,10,7],[0,0,2,4],[0,5,0,9],[0,10,4,10],[1,5,1,6],[1,7,1,9],[2,5,2,6],[2,7,2,9],[4,1,4,9],[16,10,19,10],[17,0,17,2],[17,3,17,9],[18,0,18,2],[18,3,18,9],[19,0,19,2],[19,3,19,9],[11,0,12,2],[11,3,12,3],[11,6,11,7],[13,0,13,2],[14,1,14,9],[16,0,16,2],[24,10,26,10],[27,1,27,3],[27,4,27,5],[28,1,28,3],[28,4,28,5],[29,1,29,3],[29,4,29,5],[21,1,21,9],[22,1,23,9],[24,1,26,1],[24,2,26,2],[24,3,26,3],[24,4,26,5],[24,6,26,6],[24,7,26,7],[24,8,26,8],[24,9,26,9],[36,1,36,2],[36,4,36,5],[37,1,37,2],[37,4,37,5],[38,1,38,2],[38,4,38,5],[31,1,32,9],[33,1,35,1],[33,2,35,2],[33,3,35,3],[33,4,35,5],[33,6,35,6],[33,7,35,7],[33,8,35,8],[33,9,35,9],[45,1,45,3],[45,4,45,5],[46,1,46,3],[46,4,46,5],[47,1,47,3],[47,4,47,5],[39,1,39,6],[40,1,41,9],[42,1,44,1],[42,2,44,2],[42,3,44,3],[42,4,44,5],[42,6,44,6],[42,7,44,7],[42,8,44,8],[42,9,44,9],[54,1,54,3],[54,4,54,5],[55,1,55,3],[55,4,55,5],[56,1,56,3],[56,4,56,5],[49,1,50,9],[51,1,53,1],[51,2,53,2],[51,3,53,3],[51,4,53,5],[51,6,53,6],[51,7,53,7],[51,8,53,8],[51,9,53,9],[63,1,63,3],[63,4,63,5],[64,1,64,3],[64,4,64,5],[65,1,65,3],[65,4,65,5],[58,1,59,9],[60,1,62,1],[60,2,62,2],[60,3,62,3],[60,4,62,5],[60,6,62,6],[60,7,62,7],[60,8,62,8],[60,9,62,9],[67,1,68,9],[69,1,71,1],[69,2,71,2],[69,3,71,3],[69,4,71,5],[69,6,71,6],[69,7,71,7],[69,8,71,8],[69,9,71,9],[88,1,90,9],[76,1,77,9],[78,4,79,5],[78,6,79,7],[78,8,79,9],[81,1,81,9],[83,1,86,9],[72,1,72,3],[72,4,72,5],[73,1,73,3],[73,4,73,5],[74,1,74,3],[74,4,74,5]]}
[{"$f":"ListesDéroulantes!H2&IF(ISNUMBER(RIGHT(CELL(\"filename\",$A$1),2)*1),RIGHT(CELL(\"filename\",$A$1),2)*1,IF(ISNUMBER(RIGHT(CELL(\"filename\",$A$1),1)*1),RIGHT(CELL(\"filename\",$A$1),1)*1,\"N/A\"))&ListesDéroulantes!I2","v":"Fiche partenaire n°9 : Identification et budget"},null,null,null,null,{"$f":"ListesDéroulantes!M2","v":"Réservé à l'ANR"},null,null,null,null,{"$f":"IF(COUNTIF(K6:K1508,\"Err*\")>0,COUNTIF(K6:K1508,\"Err*\")&\" \"&ListesDéroulantes!I184&IF(COUNTIF(K6:K1508,\"Err*\")>1,\"s\",\"\"),\"\")","v":"2 erreurs"}]
[null,null,null,null,null,{"$f":"ListesDéroulantes!M3","v":"N° de dossier"},null,{"$f":"Notice!H5","v":"ANR-17-IHU2-00"}]
[null,null,null,null,null,{"$f":"ListesDéroulantes!M4","v":"Acronyme"},null,{"$f":"IF(Volet_general!D10<>\"\",Volet_general!D10,\"\")","v":""}]
[]
[null,{"$f":"ListesDéroulantes!S6","v":"Identification du partenaire fondateur (PF)"}]
[]
[{"$f":"ListesDéroulantes!S8","v":"Nom complet du PF"},null,null,null,null,null,null,null,null,null,{"$f":"IF(OR(D7=\"\",D10=\"\",D12=\"\",G11=\"\",G12=\"\"),ListesDéroulantes!I171,\"\")","v":"Erreur : les données concernant le PF ne sont pas toutes renseignées."}]
[]
[]
[{"$f":"ListesDéroulantes!S11","v":"Sigle du PF"},null,null,null,null,null,{"$f":"ListesDéroulantes!K16","v":"Saisir un n°SIRET de 14digits"}]
[null,null,null,null,null,{"$f":"ListesDéroulantes!H16","v":"N° de SIRET"}]
[{"$f":"ListesDéroulantes!S13","v":"Forme juridique du PF"},null,null,null,null,{"$f":"ListesDéroulantes!H18","v":"Assujetti à la TVA "}]
[]
[]
[null,{"$f":"ListesDéroulantes!S20","v":"Personne habilitée à représenter juridiquement le partenaire fondateur (signataire de la lettre d'engagement)"}]
[]
[{"$f":"ListesDéroulantes!H22","v":"Genre"},null,null,null,null,null,null,null,null,null,{"$f":"IF(OR(D17=\"\",D18=\"\",D19=\"\",D20=\"\"),ListesDéroulantes!I172,\"\")","v":"Erreur : les données concernant la personne habilitée à engager le PF ne sont pas toutes renseignées."}]
[{"$f":"ListesDéroulantes!H23","v":"Prénom"}]
[{"$f":"ListesDéroulantes!H24","v":"Nom"}]
[{"$f":"ListesDéroulantes!H25","v":"Qualité"}]
[]
[null,{"$f":"ListesDéroulantes!S27","v":"Apports détaillés du projet (montant HT en €, incluant la TVA non récupérable le cas échéant)"}]
[null,{"$f":"ListesDéroulantes!I28","v":"Equipements ou amortissement d'équipements de R&D (supérieur à 4 000 € HT)"}]
[]
[null,null,null,null,{"$f":"ListesDéroulantes!L85","v":"Descriptif"},null,{"$f":"ListesDéroulantes!N30","v":"Coût d'achat\n(en €)"},{"$f":"ListesDéroulantes!O30","v":"Pourcentage\nd'utilisation\n(en%)"},{"$f":"ListesDéroulantes!P30","v":"Coût total\n(en €)"}]
[]
[]
[null,{"$f":"B27+1","v":1},null,null,null,null,null,null,{"$f":"IF(AND(G28<>0,H28<>0),G28*H28,\"\")","v":""}]
[null,{"$f":"B28+1","v":2},null,null,null,null,null,null,{"$f":"IF(AND(G29<>0,H29<>0),G29*H29,\"\")","v":""}]
[null,{"$f":"B29+1","v":3},null,null,null,null,null,null,{"$f":"IF(AND(G30<>0,H30<>0),G30*H30,\"\")","v":""}]
[null,null,null,null,"Total",null,null,null,{"$f":"IF(SUM(I28:I30)<>0,SUM(I28:I30),\"- €\")","v":"- €"}]
[null,{"$f":"ListesDéroulantes!S38","v":"Personnels"}]
[]
[null,null,null,{"$f":"ListesDéroulantes!K40","v":"Catégorie de personnel"},{"$f":"ListesDéroulantes!L40","v":"Descriptif"},null,{"$f":"ListesDéroulantes!N40","v":"Coût mensuel\n(en €)"},{"$f":"ListesDéroulantes!O40","v":"Personne. Mois"},{"$f":"ListesDéroulantes!P40","v":"Coût total\n(en €)"}]
[]
[]
[null,{"$f":"B36+1","v":1},null,null,null,null,null,null,{"$f":"IF(G37*H37<>0,G37*H37,\"\")","v":""}]
[null,{"$f":"B37+1","v":2},null,null,null,null,null,null,{"$f":"IF(G38*H38<>0,G38*H38,\"\")","v":""}]
[null,{"$f":"B38+1","v":3},null,null,null,null,null,null,{"$f":"IF(G39*H39<>0,G39*H39,\"\")","v":""}]
[null,"Total",null,null,null,null,null,{"$f":"IF(SUM(H37:H39)<>0,SUM(H37:H39),\"-\")","v":"-"},{"$f":"IF(SUM(I37:I39)<>0,SUM(I37:I39),\"- €\")","v":"- €"}]
[null,{"$f":"ListesDéroulantes!I65","v":"Prestations de service externes"}]
[]
[null,null,null,null,{"$f":"ListesDéroulantes!L67","v":"Descriptif"},null,null,null,{"$f":"ListesDéroulantes!P67","v":"Coût total\n(en €)"}]
[]
[]
[null,{"$f":"B45+1","v":1}]
[null,{"$f":"B46+1","v":2}]
[null,{"$f":"B47+1","v":3}]
[null,null,null,null,"Total",null,null,null,{"$f":"IF(SUM(I46:I48)<>0,SUM(I46:I48),\"- €\")","v":"- €"}]
[null,{"$f":"ListesDéroulantes!I74","v":"Missions"}]
[]
[null,null,null,null,{"$f":"ListesDéroulantes!L76","v":"Descriptif"},null,null,null,{"$f":"ListesDéroulantes!P76","v":"Coût total\n(en €)"}]
[]
[]
[null,{"$f":"B54+1","v":1}]
[null,{"$f":"B55+1","v":2}]
[null,{"$f":"B56+1","v":3}]
[null,null,null,null,"Total",null,null,null,{"$f":"IF(SUM(I55:I57)<>0,SUM(I55:I57),\"- €\")","v":"- €"}]
[null,{"$f":"ListesDéroulantes!I83","v":"Autres dépenses externes (consommables, petits matériels …)"}]
[]
[null,null,null,null,{"$f":"ListesDéroulantes!L85","v":"Descriptif"},null,null,null,{"$f":"ListesDéroulantes!P85","v":"Coût total\n(en €)"}]
[]
[]
[null,{"$f":"B63+1","v":1}]
[null,{"$f":"B64+1","v":2}]
[null,{"$f":"B65+1","v":3}]
[null,null,null,null,"Total",null,null,null,{"$f":"IF(SUM(I64:I66)<>0,SUM(I64:I66),\"- €\")","v":"- €"}]
[null,{"$f":"ListesDéroulantes!I92","v":"Autres dépenses justifiées par une procédure de facturation interne"}]
[]
[null,null,null,null,{"$f":"ListesDéroulantes!L94","v":"Descriptif"},null,{"$f":"ListesDéroulantes!N94","v":"Coût unitaire (en €)"},{"$f":"ListesDéroulantes!O94","v":"Nombre"},{"$f":"ListesDéroulantes!P94","v":"Coût total\n(en €)"}]
[]
[]
[null,{"$f":"B72+1","v":1},null,null,null,null,null,null,{"$f":"IF(G73*H73<>0,G73*H73,\"\")","v":""}]
[null,{"$f":"B73+1","v":2},null,null,null,null,null,null,{"$f":"IF(G74*H74<>0,G74*H74,\"\")","v":""}]
[null,{"$f":"B74+1","v":3},null,null,null,null,null,null,{"$f":"IF(G75*H75<>0,G75*H75,\"\")","v":""}]
[null,null,null,null,"Total",null,null,null,{"$f":"IF(SUM(I73:I75)<>0,SUM(I73:I75),\"- €\")","v":"- €"}]
[]
[]
[null,null,null,null,{"$f":"ListesDéroulantes!L113","v":"Montant total de l'apport du partenaire fondateur (en €)"},null,{"$f":"IF(SUM(I76,I67,I58,I49,I40,I31)<>0,SUM(I76,I67,I58,I49,I40,I31),\"- €\")","v":"- €"}]
[]
[]
[null,{"$f":"ListesDéroulantes!I149","v":"Commentaires (le cas échéant)"}]
[]
[]
[]
[]
[]
[]
[null,{"$f":"ListesDéroulantes!I156","v":"Les informations personnelles transmises dans ces documents sont obligatoires et seront conservées en fichiers par l'ANR pour assurer la conduite opérationnelle de l'évaluation et l'administration des dossiers.\nConformément à la loi n° 78-17 du 6 janvier 1978 modifiée, relative à l'Informatique, aux Fichiers et aux Libertés, les personnes concernées disposent d'un droit d'accès et de rectification des données personnelles les concernant. Les personnes concernées peuvent exercer ce droit en s'adressant à l'ANR (voir coordonnées dans le texte de l’appel à projets)."}]

{"sheet":"Part10","index":13,"n_rows":89,"n_cols":11,"rows_kept":89,"cut":false,"hidden":false,"merged":[[6,0,7,2],[6,3,7,9],[6,10,7,10],[9,0,9,2],[9,6,9,7],[10,0,10,2],[10,6,10,7],[0,0,2,4],[0,5,0,9],[0,10,4,10],[1,5,1,6],[1,7,1,9],[2,5,2,6],[2,7,2,9],[4,1,4,9],[16,10,19,10],[17,0,17,2],[17,3,17,9],[18,0,18,2],[18,3,18,9],[19,0,19,2],[19,3,19,9],[11,0,12,2],[11,3,12,3],[11,6,11,7],[13,0,13,2],[14,1,14,9],[16,0,16,2],[24,10,26,10],[27,1,27,3],[27,4,27,5],[28,1,28,3],[28,4,28,5],[29,1,29,3],[29,4,29,5],[21,1,21,9],[22,1,23,9],[24,1,26,1],[24,2,26,2],[24,3,26,3],[24,4,26,5],[24,6,26,6],[24,7,26,7],[24,8,26,8],[24,9,26,9],[36,1,36,2],[36,4,36,5],[37,1,37,2],[37,4,37,5],[38,1,38,2],[38,4,38,5],[31,1,32,9],[33,1,35,1],[33,2,35,2],[33,3,35,3],[33,4,35,5],[33,6,35,6],[33,7,35,7],[33,8,35,8],[33,9,35,9],[45,1,45,3],[45,4,45,5],[46,1,46,3],[46,4,46,5],[47,1,47,3],[47,4,47,5],[39,1,39,6],[40,1,41,9],[42,1,44,1],[42,2,44,2],[42,3,44,3],[42,4,44,5],[42,6,44,6],[42,7,44,7],[42,8,44,8],[42,9,44,9],[54,1,54,3],[54,4,54,5],[55,1,55,3],[55,4,55,5],[56,1,56,3],[56,4,56,5],[49,1,50,9],[51,1,53,1],[51,2,53,2],[51,3,53,3],[51,4,53,5],[51,6,53,6],[51,7,53,7],[51,8,53,8],[51,9,53,9],[63,1,63,3],[63,4,63,5],[64,1,64,3],[64,4,64,5],[65,1,65,3],[65,4,65,5],[58,1,59,9],[60,1,62,1],[60,2,62,2],[60,3,62,3],[60,4,62,5],[60,6,62,6],[60,7,62,7],[60,8,62,8],[60,9,62,9],[67,1,68,9],[69,1,71,1],[69,2,71,2],[69,3,71,3],[69,4,71,5],[69,6,71,6],[69,7,71,7],[69,8,71,8],[69,9,71,9],[88,1,90,9],[76,1,77,9],[78,4,79,5],[78,6,79,7],[78,8,79,9],[81,1,81,9],[83,1,86,9],[72,1,72,3],[72,4,72,5],[73,1,73,3],[73,4,73,5],[74,1,74,3],[74,4,74,5]]}
[{"$f":"ListesDéroulantes!H2&IF(ISNUMBER(RIGHT(CELL(\"filename\",$A$1),2)*1),RIGHT(CELL(\"filename\",$A$1),2)*1,IF(ISNUMBER(RIGHT(CELL(\"filename\",$A$1),1)*1),RIGHT(CELL(\"filename\",$A$1),1)*1,\"N/A\"))&ListesDéroulantes!I2","v":"Fiche partenaire n°10 : Identification et budget"},null,null,null,null,{"$f":"ListesDéroulantes!M2","v":"Réservé à l'ANR"},null,null,null,null,{"$f":"IF(COUNTIF(K6:K1508,\"Err*\")>0,COUNTIF(K6:K1508,\"Err*\")&\" \"&ListesDéroulantes!I184&IF(COUNTIF(K6:K1508,\"Err*\")>1,\"s\",\"\"),\"\")","v":"2 erreurs"}]
[null,null,null,null,null,{"$f":"ListesDéroulantes!M3","v":"N° de dossier"},null,{"$f":"Notice!H5","v":"ANR-17-IHU2-00"}]
[null,null,null,null,null,{"$f":"ListesDéroulantes!M4","v":"Acronyme"},null,{"$f":"IF(Volet_general!D10<>\"\",Volet_general!D10,\"\")","v":""}]
[]
[null,{"$f":"ListesDéroulantes!S6","v":"Identification du partenaire fondateur (PF)"}]
[]
[{"$f":"ListesDéroulantes!S8","v":"Nom complet du PF"},null,null,null,null,null,null,null,null,null,{"$f":"IF(OR(D7=\"\",D10=\"\",D12=\"\",G11=\"\",G12=\"\"),ListesDéroulantes!I171,\"\")","v":"Erreur : les données concernant le PF ne sont pas toutes renseignées."}]
[]
[]
[{"$f":"ListesDéroulantes!S11","v":"Sigle du PF"},null,null,null,null,null,{"$f":"ListesDéroulantes!K16","v":"Saisir un n°SIRET de 14digits"}]
[null,null,null,null,null,{"$f":"ListesDéroulantes!H16","v":"N° de SIRET"}]
[{"$f":"ListesDéroulantes!S13","v":"Forme juridique du PF"},null,null,null,null,{"$f":"ListesDéroulantes!H18","v":"Assujetti à la TVA "}]
[]
[]
[null,{"$f":"ListesDéroulantes!S20","v":"Personne habilitée à représenter juridiquement le partenaire fondateur (signataire de la lettre d'engagement)"}]
[]
[{"$f":"ListesDéroulantes!H22","v":"Genre"},null,null,null,null,null,null,null,null,null,{"$f":"IF(OR(D17=\"\",D18=\"\",D19=\"\",D20=\"\"),ListesDéroulantes!I172,\"\")","v":"Erreur : les données concernant la personne habilitée à engager le PF ne sont pas toutes renseignées."}]
[{"$f":"ListesDéroulantes!H23","v":"Prénom"}]
[{"$f":"ListesDéroulantes!H24","v":"Nom"}]
[{"$f":"ListesDéroulantes!H25","v":"Qualité"}]
[]
[null,{"$f":"ListesDéroulantes!S27","v":"Apports détaillés du projet (montant HT en €, incluant la TVA non récupérable le cas échéant)"}]
[null,{"$f":"ListesDéroulantes!I28","v":"Equipements ou amortissement d'équipements de R&D (supérieur à 4 000 € HT)"}]
[]
[null,null,null,null,{"$f":"ListesDéroulantes!L85","v":"Descriptif"},null,{"$f":"ListesDéroulantes!N30","v":"Coût d'achat\n(en €)"},{"$f":"ListesDéroulantes!O30","v":"Pourcentage\nd'utilisation\n(en%)"},{"$f":"ListesDéroulantes!P30","v":"Coût total\n(en €)"}]
[]
[]
[null,{"$f":"B27+1","v":1},null,null,null,null,null,null,{"$f":"IF(AND(G28<>0,H28<>0),G28*H28,\"\")","v":""}]
[null,{"$f":"B28+1","v":2},null,null,null,null,null,null,{"$f":"IF(AND(G29<>0,H29<>0),G29*H29,\"\")","v":""}]
[null,{"$f":"B29+1","v":3},null,null,null,null,null,null,{"$f":"IF(AND(G30<>0,H30<>0),G30*H30,\"\")","v":""}]
[null,null,null,null,"Total",null,null,null,{"$f":"IF(SUM(I28:I30)<>0,SUM(I28:I30),\"- €\")","v":"- €"}]
[null,{"$f":"ListesDéroulantes!S38","v":"Personnels"}]
[]
[null,null,null,{"$f":"ListesDéroulantes!K40","v":"Catégorie de personnel"},{"$f":"ListesDéroulantes!L40","v":"Descriptif"},null,{"$f":"ListesDéroulantes!N40","v":"Coût mensuel\n(en €)"},{"$f":"ListesDéroulantes!O40","v":"Personne. Mois"},{"$f":"ListesDéroulantes!P40","v":"Coût total\n(en €)"}]
[]
[]
[null,{"$f":"B36+1","v":1},null,null,null,null,null,null,{"$f":"IF(G37*H37<>0,G37*H37,\"\")","v":""}]
[null,{"$f":"B37+1","v":2},null,null,null,null,null,null,{"$f":"IF(G38*H38<>0,G38*H38,\"\")","v":""}]
[null,{"$f":"B38+1","v":3},null,null,null,null,null,null,{"$f":"IF(G39*H39<>0,G39*H39,\"\")","v":""}]
[null,"Total",null,null,null,null,null,{"$f":"IF(SUM(H37:H39)<>0,SUM(H37:H39),\"-\")","v":"-"},{"$f":"IF(SUM(I37:I39)<>0,SUM(I37:I39),\"- €\")","v":"- €"}]
[null,{"$f":"ListesDéroulantes!I65","v":"Prestations de service externes"}]
[]
[null,null,null,null,{"$f":"ListesDéroulantes!L67","v":"Descriptif"},null,null,null,{"$f":"ListesDéroulantes!P67","v":"Coût total\n(en €)"}]
[]
[]
[null,{"$f":"B45+1","v":1}]
[null,{"$f":"B46+1","v":2}]
[null,{"$f":"B47+1","v":3}]
[null,null,null,null,"Total",null,null,null,{"$f":"IF(SUM(I46:I48)<>0,SUM(I46:I48),\"- €\")","v":"- €"}]
[null,{"$f":"ListesDéroulantes!I74","v":"Missions"}]
[]
[null,null,null,null,{"$f":"ListesDéroulantes!L76","v":"Descriptif"},null,null,null,{"$f":"ListesDéroulantes!P76","v":"Coût total\n(en €)"}]
[]
[]
[null,{"$f":"B54+1","v":1}]
[null,{"$f":"B55+1","v":2}]
[null,{"$f":"B56+1","v":3}]
[null,null,null,null,"Total",null,null,null,{"$f":"IF(SUM(I55:I57)<>0,SUM(I55:I57),\"- €\")","v":"- €"}]
[null,{"$f":"ListesDéroulantes!I83","v":"Autres dépenses externes (consommables, petits matériels …)"}]
[]
[null,null,null,null,{"$f":"ListesDéroulantes!L85","v":"Descriptif"},null,null,null,{"$f":"ListesDéroulantes!P85","v":"Coût total\n(en €)"}]
[]
[]
[null,{"$f":"B63+1","v":1}]
[null,{"$f":"B64+1","v":2}]
[null,{"$f":"B65+1","v":3}]
[null,null,null,null,"Total",null,null,null,{"$f":"IF(SUM(I64:I66)<>0,SUM(I64:I66),\"- €\")","v":"- €"}]
[null,{"$f":"ListesDéroulantes!I92","v":"Autres dépenses justifiées par une procédure de facturation interne"}]
[]
[null,null,null,null,{"$f":"ListesDéroulantes!L94","v":"Descriptif"},null,{"$f":"ListesDéroulantes!N94","v":"Coût unitaire (en €)"},{"$f":"ListesDéroulantes!O94","v":"Nombre"},{"$f":"ListesDéroulantes!P94","v":"Coût total\n(en €)"}]
[]
[]
[null,{"$f":"B72+1","v":1},null,null,null,null,null,null,{"$f":"IF(G73*H73<>0,G73*H73,\"\")","v":""}]
[null,{"$f":"B73+1","v":2},null,null,null,null,null,null,{"$f":"IF(G74*H74<>0,G74*H74,\"\")","v":""}]
[null,{"$f":"B74+1","v":3},null,null,null,null,null,null,{"$f":"IF(G75*H75<>0,G75*H75,\"\")","v":""}]
[null,null,null,null,"Total",null,null,null,{"$f":"IF(SUM(I73:I75)<>0,SUM(I73:I75),\"- €\")","v":"- €"}]
[]
[]
[null,null,null,null,{"$f":"ListesDéroulantes!L113","v":"Montant total de l'apport du partenaire fondateur (en €)"},null,{"$f":"IF(SUM(I76,I67,I58,I49,I40,I31)<>0,SUM(I76,I67,I58,I49,I40,I31),\"- €\")","v":"- €"}]
[]
[]
[null,{"$f":"ListesDéroulantes!I149","v":"Commentaires (le cas échéant)"}]
[]
[]
[]
[]
[]
[]
[null,{"$f":"ListesDéroulantes!I156","v":"Les informations personnelles transmises dans ces documents sont obligatoires et seront conservées en fichiers par l'ANR pour assurer la conduite opérationnelle de l'évaluation et l'administration des dossiers.\nConformément à la loi n° 78-17 du 6 janvier 1978 modifiée, relative à l'Informatique, aux Fichiers et aux Libertés, les personnes concernées disposent d'un droit d'accès et de rectification des données personnelles les concernant. Les personnes concernées peuvent exercer ce droit en s'adressant à l'ANR (voir coordonnées dans le texte de l’appel à projets)."}]